Workbook

Sheet 시작
B1: 이 서식 파일 정보
B2: 이 비즈니스 비용 예산 통합 문서를 사용하여 계획한 지출과 실제 지출 및 차이를 추적할 수 있습니다.
B3: 회사 이름을 입력하고 로고를 추가하세요.
B4: 계획한 지출 워크시트와 실제 지출 워크시트의 표에 세부 정보를 입력합니다.
B5: 표는 지출 차이 워크시트와 지출 분석 워크시트의 차트에서 자동으로 업데이트됩니다.
B6: 참고:
B7: 추가적인 지침은 각 워크시트의 A열에 있으며, 이 텍스트는 일부러 숨겨 놓았습니다. 텍스트를 제거하려면 A열을 선택한 다음 [삭제]를 선택합니다. 텍스트를 표시하려면 A열을 선택한 다음 글꼴 색상을 변경합니다.
B8: 표에 대해 자세히 알려면 표 안에서 SHIFT 키를 누른 채 F10 키를 누르고 [표] 옵션을 선택한 다음, [대체 텍스트]를 선택합니다.

Sheet 계획한 지출
A1: 이 워크시트의 각 표에 계획한 직원 비용, 사무 비용, 마케팅 비용 및 교육 또는 출장 비용을 입력합니다. 합계는 자동으로 계산됩니다. 이 워크시트의 사용 방법에 대한 유용한 지침은 이 열의 셀에 있습니다. 아래쪽 화살표를 사용하여 시작할 수 있습니다.
A2: 오른쪽 셀에 회사 이름을 입력하고 N2 셀에 로고를 입력합니다. K2 셀에는 이 워크시트의 제목이 표시됩니다. | B2: 회사 이름 | K2: 세부 지출 예상 항목 | N2: 이 셀에는 로고 자리 표시자가 있습니다.
A3: K3 셀에 팁이 표시됩니다. | K3: 음영 처리된 셀은 계산 결과입니다.
A4: 오른쪽 셀에는 [계획한 지출] 레이블, C4 ~ N4 셀에는 월, O4 셀에는 [연도] 레이블, R4 셀에는 이 템플릿을 사용하는 방법이 있습니다. | B4: 계획한 지출 | C4: 1월 | D4: 2월 | E4: 3월 | F4: 4월 | G4: 5월 | H4: 6월 | I4: 7월 | J4: 8월 | K4: 9월 | L4: 10월 | M4: 11월 | N4: 12월 | O4: 연도 | R4: 팁: 이 서식 파일을 사용하는 방법 [계획한 지출]과 [실제 지출] 워크시트의 흰색 셀에 입력 데이터를 입력하면 [지출 차이]와 [지출 분석]이 자동으로 계산됩니다. 한 시트에 행을 추가하는 경우 다른 시트도 일치해야 합니다.
A5: 오른쪽 셀에서 시작하는 직원 계획 표에서 직원 비용을 입력합니다. 다음 지침은 A10 셀에 있습니다. | B5: 직원 비용 | C5: 1월 | D5: 2월 | E5: 3월 | F5: 4월 | G5: 5월 | H5: 6월 | I5: 7월 | J5: 8월 | K5: 9월 | L5: 10월 | M5: 11월 | N5: 12월 | O5: 연도
B6: 급여 | C6: ₩85,000.00 | D6: ₩85,000.00 | E6: ₩85,000.00 | F6: ₩87,500.00 | G6: ₩87,500.00 | H6: ₩87,500.00 | I6: ₩87,500.00 | J6: ₩92,400.00 | K6: ₩92,400.00 | L6: ₩92,400.00 | M6: ₩92,400.00 | N6: ₩92,400.00 | O6: =SUM(C6:N6) -> ₩1,067,000.00
B7: 복지 | C7: =C6*0.27 -> ₩22,950.00 | D7: ₩22,950.00 | E7: ₩22,950.00 | F7: ₩23,625.00 | G7: ₩23,625.00 | H7: ₩23,625.00 | I7: ₩23,625.00 | J7: ₩24,948.00 | K7: ₩24,948.00 | L7: ₩24,948.00 | M7: ₩24,948.00 | N7: ₩24,948.00 | O7: =SUM(C7:N7) -> ₩288,090.00
B8: 소계 | C8: =SUBTOTAL(109,EmployeePlan[1월]) -> ₩107,950.00 | D8: =SUBTOTAL(109,EmployeePlan[2월]) -> ₩107,950.00 | E8: =SUBTOTAL(109,EmployeePlan[3월]) -> ₩107,950.00 | F8: =SUBTOTAL(109,EmployeePlan[4월]) -> ₩111,125.00 | G8: =SUBTOTAL(109,EmployeePlan[5월]) -> ₩111,125.00 | H8: =SUBTOTAL(109,EmployeePlan[6월]) -> ₩111,125.00 | I8: =SUBTOTAL(109,EmployeePlan[7월]) -> ₩111,125.00 | J8: =SUBTOTAL(109,EmployeePlan[8월]) -> ₩117,348.00 | K8: =SUBTOTAL(109,EmployeePlan[9월]) -> ₩117,348.00 | L8: =SUBTOTAL(109,EmployeePlan[10월]) -> ₩117,348.00 | M8: =SUBTOTAL(109,EmployeePlan[11월]) -> ₩117,348.00 | N8: =SUBTOTAL(109,EmployeePlan[12월]) -> ₩117,348.00 | O8: =SUBTOTAL(109,EmployeePlan[연도]) -> ₩1,355,090.00
A10: 오른쪽 셀에서 시작하는 사무 계획 표에서 사무 비용을 입력합니다. 다음 지침은 A21 셀에 있습니다. | B10: 사무 비용 | C10: 1월 | D10: 2월 | E10: 3월 | F10: 4월 | G10: 5월 | H10: 6월 | I10: 7월 | J10: 8월 | K10: 9월 | L10: 10월 | M10: 11월 | N10: 12월 | O10: 연도
B11: 사무실 임대 | C11: ₩9,800.00 | D11: ₩9,800.00 | E11: ₩9,800.00 | F11: ₩9,800.00 | G11: ₩9,800.00 | H11: ₩9,800.00 | I11: ₩9,800.00 | J11: ₩9,800.00 | K11: ₩9,800.00 | L11: ₩9,800.00 | M11: ₩9,800.00 | N11: ₩9,800.00 | O11: =SUM(C11:N11) -> ₩117,600.00
B12: 가스 | D12: ₩400.00 | E12: ₩400.00 | F12: ₩100.00 | G12: ₩100.00 | H12: ₩100.00 | I12: ₩100.00 | J12: ₩100.00 | K12: ₩100.00 | L12: ₩100.00 | M12: ₩400.00 | N12: ₩400.00 | O12: ₩2,300.00
B13: 전기 | C13: ₩300.00 | D13: ₩300.00 | E13: ₩300.00 | F13: ₩300.00 | G13: ₩300.00 | H13: ₩300.00 | I13: ₩300.00 | J13: ₩300.00 | K13: ₩300.00 | L13: ₩300.00 | M13: ₩300.00 | N13: ₩300.00 | O13: ₩3,600.00
B14: 수도 | C14: ₩40.00 | D14: ₩40.00 | E14: ₩40.00 | F14: ₩40.00 | G14: ₩40.00 | H14: ₩40.00 | I14: ₩40.00 | J14: ₩40.00 | K14: ₩40.00 | L14: ₩40.00 | M14: ₩40.00 | N14: ₩40.00 | O14: ₩480.00
B15: 전화 | C15: ₩250.00 | D15: ₩250.00 | E15: ₩250.00 | F15: ₩250.00 | G15: ₩250.00 | H15: ₩250.00 | I15: ₩250.00 | J15: ₩250.00 | K15: ₩250.00 | L15: ₩250.00 | M15: ₩250.00 | N15: ₩250.00 | O15: ₩3,000.00
B16: 인터넷 사용 | C16: ₩180.00 | D16: ₩180.00 | E16: ₩180.00 | F16: ₩180.00 | G16: ₩180.00 | H16: ₩180.00 | I16: ₩180.00 | J16: ₩180.00 | K16: ₩180.00 | L16: ₩180.00 | M16: ₩180.00 | N16: ₩180.00 | O16: ₩2,160.00
B17: 사무용품 | C17: ₩200.00 | D17: ₩200.00 | E17: ₩200.00 | F17: ₩200.00 | G17: ₩200.00 | H17: ₩200.00 | I17: ₩200.00 | J17: ₩200.00 | K17: ₩200.00 | L17: ₩200.00 | M17: ₩200.00 | N17: ₩200.00 | O17: ₩2,400.00
B18: 보안 | C18: ₩600.00 | D18: ₩600.00 | E18: ₩600.00 | F18: ₩600.00 | G18: ₩600.00 | H18: ₩600.00 | I18: ₩600.00 | J18: ₩600.00 | K18: ₩600.00 | L18: ₩600.00 | M18: ₩600.00 | N18: ₩600.00 | O18: ₩7,200.00
B19: 소계 | C19: =SUBTOTAL(109,OfficePlan[1월]) -> ₩11,370.00 | D19: =SUBTOTAL(109,OfficePlan[2월]) -> ₩11,770.00 | E19: =SUBTOTAL(109,OfficePlan[3월]) -> ₩11,770.00 | F19: =SUBTOTAL(109,OfficePlan[4월]) -> ₩11,470.00 | G19: =SUBTOTAL(109,OfficePlan[5월]) -> ₩11,470.00 | H19: =SUBTOTAL(109,OfficePlan[6월]) -> ₩11,470.00 | I19: =SUBTOTAL(109,OfficePlan[7월]) -> ₩11,470.00 | J19: =SUBTOTAL(109,OfficePlan[8월]) -> ₩11,470.00 | K19: =SUBTOTAL(109,OfficePlan[9월]) -> ₩11,470.00 | L19: =SUBTOTAL(109,OfficePlan[10월]) -> ₩11,470.00 | M19: =SUBTOTAL(109,OfficePlan[11월]) -> ₩11,770.00 | N19: =SUBTOTAL(109,OfficePlan[12월]) -> ₩11,770.00 | O19: =SUBTOTAL(109,OfficePlan[연도]) -> ₩138,740.00
A21: 오른쪽 셀에서 시작하는 마케팅 계획 표에서 마케팅 비용을 입력합니다. 다음 지침은 A30 셀에 있습니다. | B21: 마케팅 비용 | C21: 1월 | D21: 2월 | E21: 3월 | F21: 4월 | G21: 5월 | H21: 6월 | I21: 7월 | J21: 8월 | K21: 9월 | L21: 10월 | M21: 11월 | N21: 12월 | O21: 연도
B22: 웹 사이트 호스팅 | C22: ₩500.00 | D22: ₩500.00 | E22: ₩500.00 | F22: ₩500.00 | G22: ₩500.00 | H22: ₩500.00 | I22: ₩500.00 | J22: ₩500.00 | K22: ₩500.00 | L22: ₩500.00 | M22: ₩500.00 | N22: ₩500.00 | O22: =SUM(C22:N22) -> ₩6,000.00
B23: 웹 사이트 업데이트 | C23: ₩200.00 | D23: ₩200.00 | E23: ₩200.00 | F23: ₩200.00 | G23: ₩200.00 | H23: ₩1,000.00 | I23: ₩200.00 | J23: ₩200.00 | K23: ₩200.00 | L23: ₩200.00 | M23: ₩200.00 | N23: ₩1,000.00 | O23: ₩4,000.00
B24: 자료 준비 | C24: ₩5,000.00 | D24: ₩0.00 | E24: ₩0.00 | F24: ₩5,000.00 | G24: ₩0.00 | H24: ₩0.00 | I24: ₩5,000.00 | J24: ₩0.00 | K24: ₩0.00 | L24: ₩5,000.00 | M24: ₩0.00 | N24: ₩0.00 | O24: ₩20,000.00
B25: 자료 인쇄 | C25: ₩200.00 | D25: ₩200.00 | E25: ₩200.00 | F25: ₩200.00 | G25: ₩200.00 | H25: ₩200.00 | I25: ₩200.00 | J25: ₩200.00 | K25: ₩200.00 | L25: ₩200.00 | M25: ₩200.00 | N25: ₩200.00 | O25: ₩2,400.00
B26: 마케팅 행사 | C26: ₩2,000.00 | D26: ₩2,000.00 | E26: ₩2,000.00 | F26: ₩5,000.00 | G26: ₩2,000.00 | H26: ₩2,000.00 | I26: ₩2,000.00 | J26: ₩5,000.00 | K26: ₩2,000.00 | L26: ₩2,000.00 | M26: ₩2,000.00 | N26: ₩5,000.00 | O26: ₩33,000.00
B27: 기타 비용 | C27: ₩200.00 | D27: ₩200.00 | E27: ₩200.00 | F27: ₩200.00 | G27: ₩200.00 | H27: ₩200.00 | I27: ₩200.00 | J27: ₩200.00 | K27: ₩200.00 | L27: ₩200.00 | M27: ₩200.00 | N27: ₩200.00 | O27: ₩2,400.00
B28: 소계 | C28: =SUBTOTAL(109,MarketingPlan[1월]) -> ₩8,100.00 | D28: =SUBTOTAL(109,MarketingPlan[2월]) -> ₩3,100.00 | E28: =SUBTOTAL(109,MarketingPlan[3월]) -> ₩3,100.00 | F28: =SUBTOTAL(109,MarketingPlan[4월]) -> ₩11,100.00 | G28: =SUBTOTAL(109,MarketingPlan[5월]) -> ₩3,100.00 | H28: =SUBTOTAL(109,MarketingPlan[6월]) -> ₩3,900.00 | I28: =SUBTOTAL(109,MarketingPlan[7월]) -> ₩8,100.00 | J28: =SUBTOTAL(109,MarketingPlan[8월]) -> ₩6,100.00 | K28: =SUBTOTAL(109,MarketingPlan[9월]) -> ₩3,100.00 | L28: =SUBTOTAL(109,MarketingPlan[10월]) -> ₩8,100.00 | M28: =SUBTOTAL(109,MarketingPlan[11월]) -> ₩3,100.00 | N28: =SUBTOTAL(109,MarketingPlan[12월]) -> ₩6,900.00 | O28: =SUBTOTAL(109,MarketingPlan[연도]) -> ₩67,800.00
A30: 오른쪽 셀에서 시작하는 교육 및 출장 계획 표에서 교육 및 출장 비용을 입력합니다. 다음 지침은 A35 셀에 있습니다. | B30: 교육/출장 | C30: 1월 | D30: 2월 | E30: 3월 | F30: 4월 | G30: 5월 | H30: 6월 | I30: 7월 | J30: 8월 | K30: 9월 | L30: 10월 | M30: 11월 | N30: 12월 | O30: 연도
B31: 교육 수업 | C31: ₩2,000.00 | D31: ₩2,000.00 | E31: ₩2,000.00 | F31: ₩2,000.00 | G31: ₩2,000.00 | H31: ₩2,000.00 | I31: ₩2,000.00 | J31: ₩2,000.00 | K31: ₩2,000.00 | L31: ₩2,000.00 | M31: ₩2,000.00 | N31: ₩2,000.00 | O31: =SUM(C31:N31) -> ₩24,000.00
B32: 교육 관련 출장 비용 | C32: ₩2,000.00 | D32: ₩2,000.00 | E32: ₩2,000.00 | F32: ₩2,000.00 | G32: ₩2,000.00 | H32: ₩2,000.00 | I32: ₩2,000.00 | J32: ₩2,000.00 | K32: ₩2,000.00 | L32: ₩2,000.00 | M32: ₩2,000.00 | N32: ₩2,000.00 | O32: =SUM(C32:N32) -> ₩24,000.00
B33: 소계 | C33: =SUBTOTAL(109,TrainingAndTravelPlan[1월]) -> ₩4,000.00 | D33: =SUBTOTAL(109,TrainingAndTravelPlan[2월]) -> ₩4,000.00 | E33: =SUBTOTAL(109,TrainingAndTravelPlan[3월]) -> ₩4,000.00 | F33: =SUBTOTAL(109,TrainingAndTravelPlan[4월]) -> ₩4,000.00 | G33: =SUBTOTAL(109,TrainingAndTravelPlan[5월]) -> ₩4,000.00 | H33: =SUBTOTAL(109,TrainingAndTravelPlan[6월]) -> ₩4,000.00 | I33: =SUBTOTAL(109,TrainingAndTravelPlan[7월]) -> ₩4,000.00 | J33: =SUBTOTAL(109,TrainingAndTravelPlan[8월]) -> ₩4,000.00 | K33: =SUBTOTAL(109,TrainingAndTravelPlan[9월]) -> ₩4,000.00 | L33: =SUBTOTAL(109,TrainingAndTravelPlan[10월]) -> ₩4,000.00 | M33: =SUBTOTAL(109,TrainingAndTravelPlan[11월]) -> ₩4,000.00 | N33: =SUBTOTAL(109,TrainingAndTravelPlan[12월]) -> ₩4,000.00 | O33: =SUBTOTAL(109,TrainingAndTravelPlan[연도]) -> ₩48,000.00
A35: 오른쪽 셀에서 시작하는 계획 합계 표에 합계가 자동으로 계산됩니다. | B35: 합계 | C35: 1월 | D35: 2월 | E35: 3월 | F35: 4월 | G35: 5월 | H35: 6월 | I35: 7월 | J35: 8월 | K35: 9월 | L35: 10월 | M35: 11월 | N35: 12월 | O35: 연도
B36: 월별 계획된 지출 | C36: =TrainingAndTravelPlan[[#Totals],[1월]]+MarketingPlan[[#Totals],[1월]]+OfficePlan[[#Totals],[1월]]+EmployeePlan[[#Totals],[1월]] -> ₩131,420.00 | D36: =TrainingAndTravelPlan[[#Totals],[2월]]+MarketingPlan[[#Totals],[2월]]+OfficePlan[[#Totals],[2월]]+EmployeePlan[[#Totals],[2월]] -> ₩126,820.00 | E36: =TrainingAndTravelPlan[[#Totals],[3월]]+MarketingPlan[[#Totals],[3월]]+OfficePlan[[#Totals],[3월]]+EmployeePlan[[#Totals],[3월]] -> ₩126,820.00 | F36: =TrainingAndTravelPlan[[#Totals],[4월]]+MarketingPlan[[#Totals],[4월]]+OfficePlan[[#Totals],[4월]]+EmployeePlan[[#Totals],[4월]] -> ₩137,695.00 | G36: =TrainingAndTravelPlan[[#Totals],[5월]]+MarketingPlan[[#Totals],[5월]]+OfficePlan[[#Totals],[5월]]+EmployeePlan[[#Totals],[5월]] -> ₩129,695.00 | H36: =TrainingAndTravelPlan[[#Totals],[6월]]+MarketingPlan[[#Totals],[6월]]+OfficePlan[[#Totals],[6월]]+EmployeePlan[[#Totals],[6월]] -> ₩130,495.00 | I36: =TrainingAndTravelPlan[[#Totals],[7월]]+MarketingPlan[[#Totals],[7월]]+OfficePlan[[#Totals],[7월]]+EmployeePlan[[#Totals],[7월]] -> ₩134,695.00 | J36: =TrainingAndTravelPlan[[#Totals],[8월]]+MarketingPlan[[#Totals],[8월]]+OfficePlan[[#Totals],[8월]]+EmployeePlan[[#Totals],[8월]] -> ₩138,918.00 | K36: =TrainingAndTravelPlan[[#Totals],[9월]]+MarketingPlan[[#Totals],[9월]]+OfficePlan[[#Totals],[9월]]+EmployeePlan[[#Totals],[9월]] -> ₩135,918.00 | L36: =TrainingAndTravelPlan[[#Totals],[10월]]+MarketingPlan[[#Totals],[10월]]+OfficePlan[[#Totals],[10월]]+EmployeePlan[[#Totals],[10월]] -> ₩140,918.00 | M36: =TrainingAndTravelPlan[[#Totals],[11월]]+MarketingPlan[[#Totals],[11월]]+OfficePlan[[#Totals],[11월]]+EmployeePlan[[#Totals],[11월]] -> ₩136,218.00 | N36: =TrainingAndTravelPlan[[#Totals],[12월]]+MarketingPlan[[#Totals],[12월]]+OfficePlan[[#Totals],[12월]]+EmployeePlan[[#Totals],[12월]] -> ₩140,018.00 | O36: =TrainingAndTravelPlan[[#Totals],[연도]]+MarketingPlan[[#Totals],[연도]]+OfficePlan[[#Totals],[연도]]+EmployeePlan[[#Totals],[연도]] -> ₩1,609,630.00
B37: 총 계획된 지출 | C37: =SUM($C$36:C36) -> ₩131,420.00 | D37: =SUM($C$36:D36) -> ₩258,240.00 | E37: =SUM($C$36:E36) -> ₩385,060.00 | F37: =SUM($C$36:F36) -> ₩522,755.00 | G37: =SUM($C$36:G36) -> ₩652,450.00 | H37: =SUM($C$36:H36) -> ₩782,945.00 | I37: =SUM($C$36:I36) -> ₩917,640.00 | J37: =SUM($C$36:J36) -> ₩1,056,558.00 | K37: =SUM($C$36:K36) -> ₩1,192,476.00 | L37: =SUM($C$36:L36) -> ₩1,333,394.00 | M37: =SUM($C$36:M36) -> ₩1,469,612.00 | N37: =SUM($C$36:N36) -> ₩1,609,630.00

Sheet 실제 지출
A1: 이 워크시트의 각 표에 실제 직원 비용, 사무 비용, 마케팅 비용 및 교육 또는 출장 비용을 입력합니다. 합계는 자동으로 계산됩니다. 이 워크시트의 사용 방법에 대한 유용한 지침은 이 열의 셀에 있습니다. 아래쪽 화살표를 사용하여 시작할 수 있습니다.
A2: 오른쪽 셀에 회사 이름이 자동으로 업데이트됩니다. K2 셀에는 이 워크시트의 제목이 표시됩니다. N2 셀에 로고를 입력합니다. | B2: ='계획한 지출'!B2:D3 -> 회사 이름 | K2: =worksheet_title -> 세부 지출 예상 항목 | N2: 이 셀에는 로고 자리 표시자가 있습니다.
A3: K3 셀에 팁이 표시됩니다. | K3: 음영 처리된 셀은 계산 결과입니다.
A4: 오른쪽 셀에는 [실제 지출] 레이블, C4 ~ N4 셀에는 월, O4 셀에는 [연도] 레이블이 있습니다. | B4: 실제 지출 | C4: 1월 | D4: 2월 | E4: 3월 | F4: 4월 | G4: 5월 | H4: 6월 | I4: 7월 | J4: 8월 | K4: 9월 | L4: 10월 | M4: 11월 | N4: 12월 | O4: 연도
A5: 오른쪽 셀에서 시작하는 직원 실제 표에서 직원 비용을 입력합니다. 다음 지침은 A10 셀에 있습니다. | B5: 직원 비용 | C5: 1월 | D5: 2월 | E5: 3월 | F5: 4월 | G5: 5월 | H5: 6월 | I5: 7월 | J5: 8월 | K5: 9월 | L5: 10월 | M5: 11월 | N5: 12월 | O5: 연도
B6: 급여 | C6: ₩85,000.00 | D6: ₩85,000.00 | E6: ₩85,000.00 | F6: ₩88,000.00 | G6: ₩88,000.00 | H6: ₩88,000.00 | O6: =SUM(C6:N6) -> ₩519,000.00
B7: 복지 | C7: =C6*0.27 -> ₩22,950.00 | D7: ₩22,950.00 | E7: ₩22,950.00 | F7: ₩23,760.00 | G7: ₩23,760.00 | H7: ₩23,760.00 | I7: ₩0.00 | J7: ₩0.00 | K7: ₩0.00 | L7: ₩0.00 | M7: ₩0.00 | N7: ₩0.00 | O7: =SUM(C7:N7) -> ₩140,130.00
B8: 소계 | C8: =SUBTOTAL(109,EmployeeActual[1월]) -> ₩107,950.00 | D8: =SUBTOTAL(109,EmployeeActual[2월]) -> ₩107,950.00 | E8: =SUBTOTAL(109,EmployeeActual[3월]) -> ₩107,950.00 | F8: =SUBTOTAL(109,EmployeeActual[4월]) -> ₩111,760.00 | G8: =SUBTOTAL(109,EmployeeActual[5월]) -> ₩111,760.00 | H8: =SUBTOTAL(109,EmployeeActual[6월]) -> ₩111,760.00 | I8: =SUBTOTAL(109,EmployeeActual[7월]) -> ₩0.00 | J8: =SUBTOTAL(109,EmployeeActual[8월]) -> ₩0.00 | K8: =SUBTOTAL(109,EmployeeActual[9월]) -> ₩0.00 | L8: =SUBTOTAL(109,EmployeeActual[10월]) -> ₩0.00 | M8: =SUBTOTAL(109,EmployeeActual[11월]) -> ₩0.00 | N8: =SUBTOTAL(109,EmployeeActual[12월]) -> ₩0.00 | O8: =SUBTOTAL(109,EmployeeActual[연도]) -> ₩659,130.00
A10: 오른쪽 셀에서 시작하는 사무 실제 표에서 사무 비용을 입력합니다. 다음 지침은 A21 셀에 있습니다. | B10: 사무 비용 | C10: 1월 | D10: 2월 | E10: 3월 | F10: 4월 | G10: 5월 | H10: 6월 | I10: 7월 | J10: 8월 | K10: 9월 | L10: 10월 | M10: 11월 | N10: 12월 | O10: 연도
B11: 사무실 임대 | C11: ₩9,800.00 | D11: ₩9,800.00 | E11: ₩9,800.00 | F11: ₩9,800.00 | G11: ₩9,800.00 | H11: ₩9,800.00 | O11: =SUM(C11:N11) -> ₩58,800.00
B12: 가스 | C12: ₩4.00 | D12: ₩430.00 | E12: ₩385.00 | F12: ₩230.00 | G12: ₩87.00 | H12: ₩88.00 | O12: ₩1,224.00
B13: 전기 | C13: ₩288.00 | D13: ₩278.00 | E13: ₩268.00 | F13: ₩299.00 | G13: ₩306.00 | H13: ₩290.00 | O13: ₩1,729.00
B14: 수도 | C14: ₩35.00 | D14: ₩33.00 | E14: ₩34.00 | F14: ₩36.00 | G14: ₩34.00 | H14: ₩36.00 | O14: ₩208.00
B15: 전화 | C15: ₩224.00 | D15: ₩235.00 | E15: ₩265.00 | F15: ₩245.00 | G15: ₩245.00 | H15: ₩220.00 | O15: ₩1,434.00
B16: 인터넷 사용 | C16: ₩180.00 | D16: ₩180.00 | E16: ₩180.00 | F16: ₩180.00 | G16: ₩180.00 | H16: ₩180.00 | O16: ₩1,080.00
B17: 사무용품 | C17: ₩256.00 | D17: ₩142.00 | E17: ₩160.00 | F17: ₩221.00 | G17: ₩256.00 | H17: ₩240.00 | O17: ₩1,275.00
B18: 보안 | C18: ₩600.00 | D18: ₩600.00 | E18: ₩600.00 | F18: ₩600.00 | G18: ₩600.00 | H18: ₩600.00 | O18: ₩3,600.00
B19: 소계 | C19: =SUBTOTAL(109,OfficeActual[1월]) -> ₩11,387.00 | D19: =SUBTOTAL(109,OfficeActual[2월]) -> ₩11,698.00 | E19: =SUBTOTAL(109,OfficeActual[3월]) -> ₩11,692.00 | F19: =SUBTOTAL(109,OfficeActual[4월]) -> ₩11,611.00 | G19: =SUBTOTAL(109,OfficeActual[5월]) -> ₩11,508.00 | H19: =SUBTOTAL(109,OfficeActual[6월]) -> ₩11,454.00 | I19: =SUBTOTAL(109,OfficeActual[7월]) -> ₩0.00 | J19: =SUBTOTAL(109,OfficeActual[8월]) -> ₩0.00 | K19: =SUBTOTAL(109,OfficeActual[9월]) -> ₩0.00 | L19: =SUBTOTAL(109,OfficeActual[10월]) -> ₩0.00 | M19: =SUBTOTAL(109,OfficeActual[11월]) -> ₩0.00 | N19: =SUBTOTAL(109,OfficeActual[12월]) -> ₩0.00 | O19: =SUBTOTAL(109,OfficeActual[연도]) -> ₩69,350.00
A21: 오른쪽 셀에서 시작하는 마케팅 실제 표에서 마케팅 비용을 입력합니다. 다음 지침은 A30 셀에 있습니다. | B21: 마케팅 비용 | C21: 1월 | D21: 2월 | E21: 3월 | F21: 4월 | G21: 5월 | H21: 6월 | I21: 7월 | J21: 8월 | K21: 9월 | L21: 10월 | M21: 11월 | N21: 12월 | O21: 연도
B22: 웹 사이트 호스팅 | C22: ₩500.00 | D22: ₩500.00 | E22: ₩500.00 | F22: ₩500.00 | G22: ₩500.00 | H22: ₩500.00 | O22: =SUM(C22:N22) -> ₩3,000.00
B23: 웹 사이트 업데이트 | C23: ₩200.00 | D23: ₩200.00 | E23: ₩200.00 | F23: ₩200.00 | G23: ₩200.00 | H23: ₩1,500.00 | O23: ₩2,500.00
B24: 자료 준비 | C24: ₩4,800.00 | D24: ₩0.00 | E24: ₩0.00 | F24: ₩5,500.00 | G24: ₩0.00 | H24: ₩0.00 | O24: ₩10,300.00
B25: 자료 인쇄 | C25: ₩100.00 | D25: ₩500.00 | E25: ₩100.00 | F25: ₩100.00 | G25: ₩600.00 | H25: ₩180.00 | O25: ₩1,580.00
B26: 마케팅 행사 | C26: ₩1,800.00 | D26: ₩2,200.00 | E26: ₩2,200.00 | F26: ₩4,700.00 | G26: ₩1,500.00 | H26: ₩2,300.00 | O26: ₩14,700.00
B27: 기타 비용 | C27: ₩145.00 | D27: ₩156.00 | E27: ₩123.00 | F27: ₩223.00 | G27: ₩187.00 | H27: ₩245.00 | O27: ₩1,079.00
B28: 소계 | C28: =SUBTOTAL(109,MarketingActual[1월]) -> ₩7,545.00 | D28: =SUBTOTAL(109,MarketingActual[2월]) -> ₩3,556.00 | E28: =SUBTOTAL(109,MarketingActual[3월]) -> ₩3,123.00 | F28: =SUBTOTAL(109,MarketingActual[4월]) -> ₩11,223.00 | G28: =SUBTOTAL(109,MarketingActual[5월]) -> ₩2,987.00 | H28: =SUBTOTAL(109,MarketingActual[6월]) -> ₩4,725.00 | I28: =SUBTOTAL(109,MarketingActual[7월]) -> ₩0.00 | J28: =SUBTOTAL(109,MarketingActual[8월]) -> ₩0.00 | K28: =SUBTOTAL(109,MarketingActual[9월]) -> ₩0.00 | L28: =SUBTOTAL(109,MarketingActual[10월]) -> ₩0.00 | M28: =SUBTOTAL(109,MarketingActual[11월]) -> ₩0.00 | N28: =SUBTOTAL(109,MarketingActual[12월]) -> ₩0.00 | O28: =SUBTOTAL(109,MarketingActual[연도]) -> ₩33,159.00
A30: 오른쪽 셀에서 시작하는 교육 및 출장 실제 표에서 교육 또는 출장 비용을 입력합니다. 다음 지침은 A35 셀에 있습니다. | B30: 교육/출장 | C30: 1월 | D30: 2월 | E30: 3월 | F30: 4월 | G30: 5월 | H30: 6월 | I30: 7월 | J30: 8월 | K30: 9월 | L30: 10월 | M30: 11월 | N30: 12월 | O30: 연도
B31: 교육 수업 | C31: ₩1,600.00 | D31: ₩2,400.00 | E31: ₩1,400.00 | F31: ₩1,600.00 | G31: ₩1,200.00 | H31: ₩2,800.00 | O31: =SUM(C31:N31) -> ₩11,000.00
B32: 교육 관련 출장 비용 | C32: ₩1,200.00 | D32: ₩2,200.00 | E32: ₩1,400.00 | F32: ₩1,200.00 | G32: ₩800.00 | H32: ₩3,500.00 | O32: =SUM(C32:N32) -> ₩10,300.00
B33: 소계 | C33: =SUBTOTAL(109,TrainingAndTravelActual[1월]) -> ₩2,800.00 | D33: =SUBTOTAL(109,TrainingAndTravelActual[2월]) -> ₩4,600.00 | E33: =SUBTOTAL(109,TrainingAndTravelActual[3월]) -> ₩2,800.00 | F33: =SUBTOTAL(109,TrainingAndTravelActual[4월]) -> ₩2,800.00 | G33: =SUBTOTAL(109,TrainingAndTravelActual[5월]) -> ₩2,000.00 | H33: =SUBTOTAL(109,TrainingAndTravelActual[6월]) -> ₩6,300.00 | I33: =SUBTOTAL(109,TrainingAndTravelActual[7월]) -> ₩0.00 | J33: =SUBTOTAL(109,TrainingAndTravelActual[8월]) -> ₩0.00 | K33: =SUBTOTAL(109,TrainingAndTravelActual[9월]) -> ₩0.00 | L33: =SUBTOTAL(109,TrainingAndTravelActual[10월]) -> ₩0.00 | M33: =SUBTOTAL(109,TrainingAndTravelActual[11월]) -> ₩0.00 | N33: =SUBTOTAL(109,TrainingAndTravelActual[12월]) -> ₩0.00 | O33: =SUBTOTAL(109,TrainingAndTravelActual[연도]) -> ₩21,300.00
A35: 오른쪽 셀에서 시작하는 실제 합계 표에 총 실제 지출이 자동으로 계산됩니다. | B35: 총 계획된 지출 | C35: 1월 | D35: 2월 | E35: 3월 | F35: 4월 | G35: 5월 | H35: 6월 | I35: 7월 | J35: 8월 | K35: 9월 | L35: 10월 | M35: 11월 | N35: 12월 | O35: 연도
B36: 월별 실제 지출 | C36: =TrainingAndTravelActual[[#Totals],[1월]]+MarketingActual[[#Totals],[1월]]+OfficeActual[[#Totals],[1월]]+EmployeeActual[[#Totals],[1월]] -> ₩129,682.00 | D36: =TrainingAndTravelActual[[#Totals],[2월]]+MarketingActual[[#Totals],[2월]]+OfficeActual[[#Totals],[2월]]+EmployeeActual[[#Totals],[2월]] -> ₩127,804.00 | E36: =TrainingAndTravelActual[[#Totals],[3월]]+MarketingActual[[#Totals],[3월]]+OfficeActual[[#Totals],[3월]]+EmployeeActual[[#Totals],[3월]] -> ₩125,565.00 | F36: =TrainingAndTravelActual[[#Totals],[4월]]+MarketingActual[[#Totals],[4월]]+OfficeActual[[#Totals],[4월]]+EmployeeActual[[#Totals],[4월]] -> ₩137,394.00 | G36: =TrainingAndTravelActual[[#Totals],[5월]]+MarketingActual[[#Totals],[5월]]+OfficeActual[[#Totals],[5월]]+EmployeeActual[[#Totals],[5월]] -> ₩128,255.00 | H36: =TrainingAndTravelActual[[#Totals],[6월]]+MarketingActual[[#Totals],[6월]]+OfficeActual[[#Totals],[6월]]+EmployeeActual[[#Totals],[6월]] -> ₩134,239.00 | I36: =TrainingAndTravelActual[[#Totals],[7월]]+MarketingActual[[#Totals],[7월]]+OfficeActual[[#Totals],[7월]]+EmployeeActual[[#Totals],[7월]] -> ₩0.00 | J36: =TrainingAndTravelActual[[#Totals],[8월]]+MarketingActual[[#Totals],[8월]]+OfficeActual[[#Totals],[8월]]+EmployeeActual[[#Totals],[8월]] -> ₩0.00 | K36: =TrainingAndTravelActual[[#Totals],[9월]]+MarketingActual[[#Totals],[9월]]+OfficeActual[[#Totals],[9월]]+EmployeeActual[[#Totals],[9월]] -> ₩0.00 | L36: =TrainingAndTravelActual[[#Totals],[10월]]+MarketingActual[[#Totals],[10월]]+OfficeActual[[#Totals],[10월]]+EmployeeActual[[#Totals],[10월]] -> ₩0.00 | M36: =TrainingAndTravelActual[[#Totals],[11월]]+MarketingActual[[#Totals],[11월]]+OfficeActual[[#Totals],[11월]]+EmployeeActual[[#Totals],[11월]] -> ₩0.00 | N36: =TrainingAndTravelActual[[#Totals],[12월]]+MarketingActual[[#Totals],[12월]]+OfficeActual[[#Totals],[12월]]+EmployeeActual[[#Totals],[12월]] -> ₩0.00 | O36: =TrainingAndTravelActual[[#Totals],[연도]]+MarketingActual[[#Totals],[연도]]+OfficeActual[[#Totals],[연도]]+EmployeeActual[[#Totals],[연도]] -> ₩782,939.00
B37: 총 실제 지출 | C37: =SUM($C$36:C36) -> ₩129,682.00 | D37: =SUM($C$36:D36) -> ₩257,486.00 | E37: =SUM($C$36:E36) -> ₩383,051.00 | F37: =SUM($C$36:F36) -> ₩520,445.00 | G37: =SUM($C$36:G36) -> ₩648,700.00 | H37: =SUM($C$36:H36) -> ₩782,939.00 | I37: =SUM($C$36:I36) -> ₩782,939.00 | J37: =SUM($C$36:J36) -> ₩782,939.00 | K37: =SUM($C$36:K36) -> ₩782,939.00 | L37: =SUM($C$36:L36) -> ₩782,939.00 | M37: =SUM($C$36:M36) -> ₩782,939.00 | N37: =SUM($C$36:N36) -> ₩782,939.00

Sheet 지출 차이
A1: 이 워크시트의 각 표에 있는 직원 비용, 사무 비용, 마케팅 비용 및 교육 또는 출장 비용에 대한 지출 차이가 이 워크시트에 자동으로 계산됩니다. 이 워크시트의 사용 방법에 대한 유용한 지침은 이 열의 셀에 있습니다. 아래쪽 화살표를 사용하여 시작할 수 있습니다.
A2: 오른쪽 셀에 회사 이름이 자동으로 업데이트됩니다. K2 셀에는 이 워크시트의 제목이 표시됩니다. N2 셀에 로고를 입력합니다. | B2: ='계획한 지출'!B2:D3 -> 회사 이름 | K2: =worksheet_title -> 세부 지출 예상 항목 | N2: 이 셀에는 로고 자리 표시자가 있습니다.
A3: K3 셀에 팁이 표시됩니다. | K3: 음영 처리된 셀은 계산 결과입니다.
A4: 오른쪽 셀에는 [지출 차이] 레이블, C4 ~ N4 셀에는 월, O4 셀에는 [연도] 레이블이 있습니다. | B4: 지출 차이 | C4: 1월 | D4: 2월 | E4: 3월 | F4: 4월 | G4: 5월 | H4: 6월 | I4: 7월 | J4: 8월 | K4: 9월 | L4: 10월 | M4: 11월 | N4: 12월 | O4: 연도
A5: 오른쪽 셀에서 시작하는 직원 차이 표에 직원 비용 차이가 자동으로 계산됩니다. 다음 지침은 A10 셀에 있습니다. | B5: 직원 비용 | C5: 1월 | D5: 2월 | E5: 3월 | F5: 4월 | G5: 5월 | H5: 6월 | I5: 7월 | J5: 8월 | K5: 9월 | L5: 10월 | M5: 11월 | N5: 12월 | O5: 연도
B6: 급여 | C6: =INDEX(EmployeePlan[],MATCH(INDEX(EmployeeVariances[],ROW()-ROW(EmployeeVariances[[#Headers],[1월]]),1),INDEX(EmployeePlan[],,1),0),MATCH(EmployeeVariances[[#Headers],[1월]],EmployeePlan[#Headers],0))-INDEX(EmployeeActual[],MATCH(INDEX(EmployeeVariances[],ROW()-ROW(EmployeeVariances[[#Headers],[1월]]),1),INDEX(EmployeePlan[],,1),0),MATCH(EmployeeVariances[[#Headers],[1월]],EmployeeActual[#Headers],0)) -> ₩0.00 | D6: =INDEX(EmployeePlan[],MATCH(INDEX(EmployeeVariances[],ROW()-ROW(EmployeeVariances[[#Headers],[2월]]),1),INDEX(EmployeePlan[],,1),0),MATCH(EmployeeVariances[[#Headers],[2월]],EmployeePlan[#Headers],0))-INDEX(EmployeeActual[],MATCH(INDEX(EmployeeVariances[],ROW()-ROW(EmployeeVariances[[#Headers],[2월]]),1),INDEX(EmployeePlan[],,1),0),MATCH(EmployeeVariances[[#Headers],[2월]],EmployeeActual[#Headers],0)) -> ₩0.00 | E6: =INDEX(EmployeePlan[],MATCH(INDEX(EmployeeVariances[],ROW()-ROW(EmployeeVariances[[#Headers],[3월]]),1),INDEX(EmployeePlan[],,1),0),MATCH(EmployeeVariances[[#Headers],[3월]],EmployeePlan[#Headers],0))-INDEX(EmployeeActual[],MATCH(INDEX(EmployeeVariances[],ROW()-ROW(EmployeeVariances[[#Headers],[3월]]),1),INDEX(EmployeePlan[],,1),0),MATCH(EmployeeVariances[[#Headers],[3월]],EmployeeActual[#Headers],0)) -> ₩0.00 | F6: =INDEX(EmployeePlan[],MATCH(INDEX(EmployeeVariances[],ROW()-ROW(EmployeeVariances[[#Headers],[4월]]),1),INDEX(EmployeePlan[],,1),0),MATCH(EmployeeVariances[[#Headers],[4월]],EmployeePlan[#Headers],0))-INDEX(EmployeeActual[],MATCH(INDEX(EmployeeVariances[],ROW()-ROW(EmployeeVariances[[#Headers],[4월]]),1),INDEX(EmployeePlan[],,1),0),MATCH(EmployeeVariances[[#Headers],[4월]],EmployeeActual[#Headers],0)) -> (₩500.00) | G6: =INDEX(EmployeePlan[],MATCH(INDEX(EmployeeVariances[],ROW()-ROW(EmployeeVariances[[#Headers],[5월]]),1),INDEX(EmployeePlan[],,1),0),MATCH(EmployeeVariances[[#Headers],[5월]],EmployeePlan[#Headers],0))-INDEX(EmployeeActual[],MATCH(INDEX(EmployeeVariances[],ROW()-ROW(EmployeeVariances[[#Headers],[5월]]),1),INDEX(EmployeePlan[],,1),0),MATCH(EmployeeVariances[[#Headers],[5월]],EmployeeActual[#Headers],0)) -> (₩500.00) | H6: =INDEX(EmployeePlan[],MATCH(INDEX(EmployeeVariances[],ROW()-ROW(EmployeeVariances[[#Headers],[6월]]),1),INDEX(EmployeePlan[],,1),0),MATCH(EmployeeVariances[[#Headers],[6월]],EmployeePlan[#Headers],0))-INDEX(EmployeeActual[],MATCH(INDEX(EmployeeVariances[],ROW()-ROW(EmployeeVariances[[#Headers],[6월]]),1),INDEX(EmployeePlan[],,1),0),MATCH(EmployeeVariances[[#Headers],[6월]],EmployeeActual[#Headers],0)) -> (₩500.00) | I6: =INDEX(EmployeePlan[],MATCH(INDEX(EmployeeVariances[],ROW()-ROW(EmployeeVariances[[#Headers],[7월]]),1),INDEX(EmployeePlan[],,1),0),MATCH(EmployeeVariances[[#Headers],[7월]],EmployeePlan[#Headers],0))-INDEX(EmployeeActual[],MATCH(INDEX(EmployeeVariances[],ROW()-ROW(EmployeeVariances[[#Headers],[7월]]),1),INDEX(EmployeePlan[],,1),0),MATCH(EmployeeVariances[[#Headers],[7월]],EmployeeActual[#Headers],0)) -> ₩87,500.00 | J6: =INDEX(EmployeePlan[],MATCH(INDEX(EmployeeVariances[],ROW()-ROW(EmployeeVariances[[#Headers],[8월]]),1),INDEX(EmployeePlan[],,1),0),MATCH(EmployeeVariances[[#Headers],[8월]],EmployeePlan[#Headers],0))-INDEX(EmployeeActual[],MATCH(INDEX(EmployeeVariances[],ROW()-ROW(EmployeeVariances[[#Headers],[8월]]),1),INDEX(EmployeePlan[],,1),0),MATCH(EmployeeVariances[[#Headers],[8월]],EmployeeActual[#Headers],0)) -> ₩92,400.00 | K6: =INDEX(EmployeePlan[],MATCH(INDEX(EmployeeVariances[],ROW()-ROW(EmployeeVariances[[#Headers],[9월]]),1),INDEX(EmployeePlan[],,1),0),MATCH(EmployeeVariances[[#Headers],[9월]],EmployeePlan[#Headers],0))-INDEX(EmployeeActual[],MATCH(INDEX(EmployeeVariances[],ROW()-ROW(EmployeeVariances[[#Headers],[9월]]),1),INDEX(EmployeePlan[],,1),0),MATCH(EmployeeVariances[[#Headers],[9월]],EmployeeActual[#Headers],0)) -> ₩92,400.00 | L6: =INDEX(EmployeePlan[],MATCH(INDEX(EmployeeVariances[],ROW()-ROW(EmployeeVariances[[#Headers],[10월]]),1),INDEX(EmployeePlan[],,1),0),MATCH(EmployeeVariances[[#Headers],[10월]],EmployeePlan[#Headers],0))-INDEX(EmployeeActual[],MATCH(INDEX(EmployeeVariances[],ROW()-ROW(EmployeeVariances[[#Headers],[10월]]),1),INDEX(EmployeePlan[],,1),0),MATCH(EmployeeVariances[[#Headers],[10월]],EmployeeActual[#Headers],0)) -> ₩92,400.00 | M6: =INDEX(EmployeePlan[],MATCH(INDEX(EmployeeVariances[],ROW()-ROW(EmployeeVariances[[#Headers],[11월]]),1),INDEX(EmployeePlan[],,1),0),MATCH(EmployeeVariances[[#Headers],[11월]],EmployeePlan[#Headers],0))-INDEX(EmployeeActual[],MATCH(INDEX(EmployeeVariances[],ROW()-ROW(EmployeeVariances[[#Headers],[11월]]),1),INDEX(EmployeePlan[],,1),0),MATCH(EmployeeVariances[[#Headers],[11월]],EmployeeActual[#Headers],0)) -> ₩92,400.00 | N6: =INDEX(EmployeePlan[],MATCH(INDEX(EmployeeVariances[],ROW()-ROW(EmployeeVariances[[#Headers],[12월]]),1),INDEX(EmployeePlan[],,1),0),MATCH(EmployeeVariances[[#Headers],[12월]],EmployeePlan[#Headers],0))-INDEX(EmployeeActual[],MATCH(INDEX(EmployeeVariances[],ROW()-ROW(EmployeeVariances[[#Headers],[12월]]),1),INDEX(EmployeePlan[],,1),0),MATCH(EmployeeVariances[[#Headers],[12월]],EmployeeActual[#Headers],0)) -> ₩92,400.00 | O6: =SUM(EmployeeVariances[[#This Row],[1월]:[12월]]) -> ₩548,000.00
B7: 복지 | C7: =INDEX(EmployeePlan[],MATCH(INDEX(EmployeeVariances[],ROW()-ROW(EmployeeVariances[[#Headers],[1월]]),1),INDEX(EmployeePlan[],,1),0),MATCH(EmployeeVariances[[#Headers],[1월]],EmployeePlan[#Headers],0))-INDEX(EmployeeActual[],MATCH(INDEX(EmployeeVariances[],ROW()-ROW(EmployeeVariances[[#Headers],[1월]]),1),INDEX(EmployeePlan[],,1),0),MATCH(EmployeeVariances[[#Headers],[1월]],EmployeeActual[#Headers],0)) -> ₩0.00 | D7: =INDEX(EmployeePlan[],MATCH(INDEX(EmployeeVariances[],ROW()-ROW(EmployeeVariances[[#Headers],[2월]]),1),INDEX(EmployeePlan[],,1),0),MATCH(EmployeeVariances[[#Headers],[2월]],EmployeePlan[#Headers],0))-INDEX(EmployeeActual[],MATCH(INDEX(EmployeeVariances[],ROW()-ROW(EmployeeVariances[[#Headers],[2월]]),1),INDEX(EmployeePlan[],,1),0),MATCH(EmployeeVariances[[#Headers],[2월]],EmployeeActual[#Headers],0)) -> ₩0.00 | E7: =INDEX(EmployeePlan[],MATCH(INDEX(EmployeeVariances[],ROW()-ROW(EmployeeVariances[[#Headers],[3월]]),1),INDEX(EmployeePlan[],,1),0),MATCH(EmployeeVariances[[#Headers],[3월]],EmployeePlan[#Headers],0))-INDEX(EmployeeActual[],MATCH(INDEX(EmployeeVariances[],ROW()-ROW(EmployeeVariances[[#Headers],[3월]]),1),INDEX(EmployeePlan[],,1),0),MATCH(EmployeeVariances[[#Headers],[3월]],EmployeeActual[#Headers],0)) -> ₩0.00 | F7: =INDEX(EmployeePlan[],MATCH(INDEX(EmployeeVariances[],ROW()-ROW(EmployeeVariances[[#Headers],[4월]]),1),INDEX(EmployeePlan[],,1),0),MATCH(EmployeeVariances[[#Headers],[4월]],EmployeePlan[#Headers],0))-INDEX(EmployeeActual[],MATCH(INDEX(EmployeeVariances[],ROW()-ROW(EmployeeVariances[[#Headers],[4월]]),1),INDEX(EmployeePlan[],,1),0),MATCH(EmployeeVariances[[#Headers],[4월]],EmployeeActual[#Headers],0)) -> (₩135.00) | G7: =INDEX(EmployeePlan[],MATCH(INDEX(EmployeeVariances[],ROW()-ROW(EmployeeVariances[[#Headers],[5월]]),1),INDEX(EmployeePlan[],,1),0),MATCH(EmployeeVariances[[#Headers],[5월]],EmployeePlan[#Headers],0))-INDEX(EmployeeActual[],MATCH(INDEX(EmployeeVariances[],ROW()-ROW(EmployeeVariances[[#Headers],[5월]]),1),INDEX(EmployeePlan[],,1),0),MATCH(EmployeeVariances[[#Headers],[5월]],EmployeeActual[#Headers],0)) -> (₩135.00) | H7: =INDEX(EmployeePlan[],MATCH(INDEX(EmployeeVariances[],ROW()-ROW(EmployeeVariances[[#Headers],[6월]]),1),INDEX(EmployeePlan[],,1),0),MATCH(EmployeeVariances[[#Headers],[6월]],EmployeePlan[#Headers],0))-INDEX(EmployeeActual[],MATCH(INDEX(EmployeeVariances[],ROW()-ROW(EmployeeVariances[[#Headers],[6월]]),1),INDEX(EmployeePlan[],,1),0),MATCH(EmployeeVariances[[#Headers],[6월]],EmployeeActual[#Headers],0)) -> (₩135.00) | I7: =INDEX(EmployeePlan[],MATCH(INDEX(EmployeeVariances[],ROW()-ROW(EmployeeVariances[[#Headers],[7월]]),1),INDEX(EmployeePlan[],,1),0),MATCH(EmployeeVariances[[#Headers],[7월]],EmployeePlan[#Headers],0))-INDEX(EmployeeActual[],MATCH(INDEX(EmployeeVariances[],ROW()-ROW(EmployeeVariances[[#Headers],[7월]]),1),INDEX(EmployeePlan[],,1),0),MATCH(EmployeeVariances[[#Headers],[7월]],EmployeeActual[#Headers],0)) -> ₩23,625.00 | J7: =INDEX(EmployeePlan[],MATCH(INDEX(EmployeeVariances[],ROW()-ROW(EmployeeVariances[[#Headers],[8월]]),1),INDEX(EmployeePlan[],,1),0),MATCH(EmployeeVariances[[#Headers],[8월]],EmployeePlan[#Headers],0))-INDEX(EmployeeActual[],MATCH(INDEX(EmployeeVariances[],ROW()-ROW(EmployeeVariances[[#Headers],[8월]]),1),INDEX(EmployeePlan[],,1),0),MATCH(EmployeeVariances[[#Headers],[8월]],EmployeeActual[#Headers],0)) -> ₩24,948.00 | K7: =INDEX(EmployeePlan[],MATCH(INDEX(EmployeeVariances[],ROW()-ROW(EmployeeVariances[[#Headers],[9월]]),1),INDEX(EmployeePlan[],,1),0),MATCH(EmployeeVariances[[#Headers],[9월]],EmployeePlan[#Headers],0))-INDEX(EmployeeActual[],MATCH(INDEX(EmployeeVariances[],ROW()-ROW(EmployeeVariances[[#Headers],[9월]]),1),INDEX(EmployeePlan[],,1),0),MATCH(EmployeeVariances[[#Headers],[9월]],EmployeeActual[#Headers],0)) -> ₩24,948.00 | L7: =INDEX(EmployeePlan[],MATCH(INDEX(EmployeeVariances[],ROW()-ROW(EmployeeVariances[[#Headers],[10월]]),1),INDEX(EmployeePlan[],,1),0),MATCH(EmployeeVariances[[#Headers],[10월]],EmployeePlan[#Headers],0))-INDEX(EmployeeActual[],MATCH(INDEX(EmployeeVariances[],ROW()-ROW(EmployeeVariances[[#Headers],[10월]]),1),INDEX(EmployeePlan[],,1),0),MATCH(EmployeeVariances[[#Headers],[10월]],EmployeeActual[#Headers],0)) -> ₩24,948.00 | M7: =INDEX(EmployeePlan[],MATCH(INDEX(EmployeeVariances[],ROW()-ROW(EmployeeVariances[[#Headers],[11월]]),1),INDEX(EmployeePlan[],,1),0),MATCH(EmployeeVariances[[#Headers],[11월]],EmployeePlan[#Headers],0))-INDEX(EmployeeActual[],MATCH(INDEX(EmployeeVariances[],ROW()-ROW(EmployeeVariances[[#Headers],[11월]]),1),INDEX(EmployeePlan[],,1),0),MATCH(EmployeeVariances[[#Headers],[11월]],EmployeeActual[#Headers],0)) -> ₩24,948.00 | N7: =INDEX(EmployeePlan[],MATCH(INDEX(EmployeeVariances[],ROW()-ROW(EmployeeVariances[[#Headers],[12월]]),1),INDEX(EmployeePlan[],,1),0),MATCH(EmployeeVariances[[#Headers],[12월]],EmployeePlan[#Headers],0))-INDEX(EmployeeActual[],MATCH(INDEX(EmployeeVariances[],ROW()-ROW(EmployeeVariances[[#Headers],[12월]]),1),INDEX(EmployeePlan[],,1),0),MATCH(EmployeeVariances[[#Headers],[12월]],EmployeeActual[#Headers],0)) -> ₩24,948.00 | O7: =SUM(EmployeeVariances[[#This Row],[1월]:[12월]]) -> ₩147,960.00
B8: 소계 | C8: =SUBTOTAL(109,EmployeeVariances[1월]) -> ₩0.00 | D8: =SUBTOTAL(109,EmployeeVariances[2월]) -> ₩0.00 | E8: =SUBTOTAL(109,EmployeeVariances[3월]) -> ₩0.00 | F8: =SUBTOTAL(109,EmployeeVariances[4월]) -> (₩635.00) | G8: =SUBTOTAL(109,EmployeeVariances[5월]) -> (₩635.00) | H8: =SUBTOTAL(109,EmployeeVariances[6월]) -> (₩635.00) | I8: =SUBTOTAL(109,EmployeeVariances[7월]) -> ₩111,125.00 | J8: =SUBTOTAL(109,EmployeeVariances[8월]) -> ₩117,348.00 | K8: =SUBTOTAL(109,EmployeeVariances[9월]) -> ₩117,348.00 | L8: =SUBTOTAL(109,EmployeeVariances[10월]) -> ₩117,348.00 | M8: =SUBTOTAL(109,EmployeeVariances[11월]) -> ₩117,348.00 | N8: =SUBTOTAL(109,EmployeeVariances[12월]) -> ₩117,348.00 | O8: =SUBTOTAL(109,EmployeeVariances[연도]) -> ₩695,960.00
A10: 오른쪽 셀에서 시작하는 사무 차이 표에 사무 비용 차이가 자동으로 계산됩니다. 다음 지침은 A21 셀에 있습니다. | B10: 사무 비용 | C10: 1월 | D10: 2월 | E10: 3월 | F10: 4월 | G10: 5월 | H10: 6월 | I10: 7월 | J10: 8월 | K10: 9월 | L10: 10월 | M10: 11월 | N10: 12월 | O10: 연도
B11: 사무실 임대 | C11: =INDEX(OfficePlan[],MATCH(INDEX(OfficeVariances[],ROW()-ROW(OfficeVariances[[#Headers],[1월]]),1),INDEX(OfficePlan[],,1),0),MATCH(OfficeVariances[[#Headers],[1월]],OfficePlan[#Headers],0))-INDEX(OfficeActual[],MATCH(INDEX(OfficeVariances[],ROW()-ROW(OfficeVariances[[#Headers],[1월]]),1),INDEX(OfficePlan[],,1),0),MATCH(OfficeVariances[[#Headers],[1월]],OfficeActual[#Headers],0)) -> ₩0.00 | D11: =INDEX(OfficePlan[],MATCH(INDEX(OfficeVariances[],ROW()-ROW(OfficeVariances[[#Headers],[2월]]),1),INDEX(OfficePlan[],,1),0),MATCH(OfficeVariances[[#Headers],[2월]],OfficePlan[#Headers],0))-INDEX(OfficeActual[],MATCH(INDEX(OfficeVariances[],ROW()-ROW(OfficeVariances[[#Headers],[2월]]),1),INDEX(OfficePlan[],,1),0),MATCH(OfficeVariances[[#Headers],[2월]],OfficeActual[#Headers],0)) -> ₩0.00 | E11: =INDEX(OfficePlan[],MATCH(INDEX(OfficeVariances[],ROW()-ROW(OfficeVariances[[#Headers],[3월]]),1),INDEX(OfficePlan[],,1),0),MATCH(OfficeVariances[[#Headers],[3월]],OfficePlan[#Headers],0))-INDEX(OfficeActual[],MATCH(INDEX(OfficeVariances[],ROW()-ROW(OfficeVariances[[#Headers],[3월]]),1),INDEX(OfficePlan[],,1),0),MATCH(OfficeVariances[[#Headers],[3월]],OfficeActual[#Headers],0)) -> ₩0.00 | F11: =INDEX(OfficePlan[],MATCH(INDEX(OfficeVariances[],ROW()-ROW(OfficeVariances[[#Headers],[4월]]),1),INDEX(OfficePlan[],,1),0),MATCH(OfficeVariances[[#Headers],[4월]],OfficePlan[#Headers],0))-INDEX(OfficeActual[],MATCH(INDEX(OfficeVariances[],ROW()-ROW(OfficeVariances[[#Headers],[4월]]),1),INDEX(OfficePlan[],,1),0),MATCH(OfficeVariances[[#Headers],[4월]],OfficeActual[#Headers],0)) -> ₩0.00 | G11: =INDEX(OfficePlan[],MATCH(INDEX(OfficeVariances[],ROW()-ROW(OfficeVariances[[#Headers],[5월]]),1),INDEX(OfficePlan[],,1),0),MATCH(OfficeVariances[[#Headers],[5월]],OfficePlan[#Headers],0))-INDEX(OfficeActual[],MATCH(INDEX(OfficeVariances[],ROW()-ROW(OfficeVariances[[#Headers],[5월]]),1),INDEX(OfficePlan[],,1),0),MATCH(OfficeVariances[[#Headers],[5월]],OfficeActual[#Headers],0)) -> ₩0.00 | H11: =INDEX(OfficePlan[],MATCH(INDEX(OfficeVariances[],ROW()-ROW(OfficeVariances[[#Headers],[6월]]),1),INDEX(OfficePlan[],,1),0),MATCH(OfficeVariances[[#Headers],[6월]],OfficePlan[#Headers],0))-INDEX(OfficeActual[],MATCH(INDEX(OfficeVariances[],ROW()-ROW(OfficeVariances[[#Headers],[6월]]),1),INDEX(OfficePlan[],,1),0),MATCH(OfficeVariances[[#Headers],[6월]],OfficeActual[#Headers],0)) -> ₩0.00 | I11: =INDEX(OfficePlan[],MATCH(INDEX(OfficeVariances[],ROW()-ROW(OfficeVariances[[#Headers],[7월]]),1),INDEX(OfficePlan[],,1),0),MATCH(OfficeVariances[[#Headers],[7월]],OfficePlan[#Headers],0))-INDEX(OfficeActual[],MATCH(INDEX(OfficeVariances[],ROW()-ROW(OfficeVariances[[#Headers],[7월]]),1),INDEX(OfficePlan[],,1),0),MATCH(OfficeVariances[[#Headers],[7월]],OfficeActual[#Headers],0)) -> ₩9,800.00 | J11: =INDEX(OfficePlan[],MATCH(INDEX(OfficeVariances[],ROW()-ROW(OfficeVariances[[#Headers],[8월]]),1),INDEX(OfficePlan[],,1),0),MATCH(OfficeVariances[[#Headers],[8월]],OfficePlan[#Headers],0))-INDEX(OfficeActual[],MATCH(INDEX(OfficeVariances[],ROW()-ROW(OfficeVariances[[#Headers],[8월]]),1),INDEX(OfficePlan[],,1),0),MATCH(OfficeVariances[[#Headers],[8월]],OfficeActual[#Headers],0)) -> ₩9,800.00 | K11: =INDEX(OfficePlan[],MATCH(INDEX(OfficeVariances[],ROW()-ROW(OfficeVariances[[#Headers],[9월]]),1),INDEX(OfficePlan[],,1),0),MATCH(OfficeVariances[[#Headers],[9월]],OfficePlan[#Headers],0))-INDEX(OfficeActual[],MATCH(INDEX(OfficeVariances[],ROW()-ROW(OfficeVariances[[#Headers],[9월]]),1),INDEX(OfficePlan[],,1),0),MATCH(OfficeVariances[[#Headers],[9월]],OfficeActual[#Headers],0)) -> ₩9,800.00 | L11: =INDEX(OfficePlan[],MATCH(INDEX(OfficeVariances[],ROW()-ROW(OfficeVariances[[#Headers],[10월]]),1),INDEX(OfficePlan[],,1),0),MATCH(OfficeVariances[[#Headers],[10월]],OfficePlan[#Headers],0))-INDEX(OfficeActual[],MATCH(INDEX(OfficeVariances[],ROW()-ROW(OfficeVariances[[#Headers],[10월]]),1),INDEX(OfficePlan[],,1),0),MATCH(OfficeVariances[[#Headers],[10월]],OfficeActual[#Headers],0)) -> ₩9,800.00 | M11: =INDEX(OfficePlan[],MATCH(INDEX(OfficeVariances[],ROW()-ROW(OfficeVariances[[#Headers],[11월]]),1),INDEX(OfficePlan[],,1),0),MATCH(OfficeVariances[[#Headers],[11월]],OfficePlan[#Headers],0))-INDEX(OfficeActual[],MATCH(INDEX(OfficeVariances[],ROW()-ROW(OfficeVariances[[#Headers],[11월]]),1),INDEX(OfficePlan[],,1),0),MATCH(OfficeVariances[[#Headers],[11월]],OfficeActual[#Headers],0)) -> ₩9,800.00 | N11: =INDEX(OfficePlan[],MATCH(INDEX(OfficeVariances[],ROW()-ROW(OfficeVariances[[#Headers],[12월]]),1),INDEX(OfficePlan[],,1),0),MATCH(OfficeVariances[[#Headers],[12월]],OfficePlan[#Headers],0))-INDEX(OfficeActual[],MATCH(INDEX(OfficeVariances[],ROW()-ROW(OfficeVariances[[#Headers],[12월]]),1),INDEX(OfficePlan[],,1),0),MATCH(OfficeVariances[[#Headers],[12월]],OfficeActual[#Headers],0)) -> ₩9,800.00 | O11: =SUM(OfficeVariances[[#This Row],[1월]:[12월]]) -> ₩58,800.00
B12: 가스 | C12: =INDEX(OfficePlan[],MATCH(INDEX(OfficeVariances[],ROW()-ROW(OfficeVariances[[#Headers],[1월]]),1),INDEX(OfficePlan[],,1),0),MATCH(OfficeVariances[[#Headers],[1월]],OfficePlan[#Headers],0))-INDEX(OfficeActual[],MATCH(INDEX(OfficeVariances[],ROW()-ROW(OfficeVariances[[#Headers],[1월]]),1),INDEX(OfficePlan[],,1),0),MATCH(OfficeVariances[[#Headers],[1월]],OfficeActual[#Headers],0)) -> (₩4.00) | D12: =INDEX(OfficePlan[],MATCH(INDEX(OfficeVariances[],ROW()-ROW(OfficeVariances[[#Headers],[2월]]),1),INDEX(OfficePlan[],,1),0),MATCH(OfficeVariances[[#Headers],[2월]],OfficePlan[#Headers],0))-INDEX(OfficeActual[],MATCH(INDEX(OfficeVariances[],ROW()-ROW(OfficeVariances[[#Headers],[2월]]),1),INDEX(OfficePlan[],,1),0),MATCH(OfficeVariances[[#Headers],[2월]],OfficeActual[#Headers],0)) -> (₩30.00) | E12: =INDEX(OfficePlan[],MATCH(INDEX(OfficeVariances[],ROW()-ROW(OfficeVariances[[#Headers],[3월]]),1),INDEX(OfficePlan[],,1),0),MATCH(OfficeVariances[[#Headers],[3월]],OfficePlan[#Headers],0))-INDEX(OfficeActual[],MATCH(INDEX(OfficeVariances[],ROW()-ROW(OfficeVariances[[#Headers],[3월]]),1),INDEX(OfficePlan[],,1),0),MATCH(OfficeVariances[[#Headers],[3월]],OfficeActual[#Headers],0)) -> ₩15.00 | F12: =INDEX(OfficePlan[],MATCH(INDEX(OfficeVariances[],ROW()-ROW(OfficeVariances[[#Headers],[4월]]),1),INDEX(OfficePlan[],,1),0),MATCH(OfficeVariances[[#Headers],[4월]],OfficePlan[#Headers],0))-INDEX(OfficeActual[],MATCH(INDEX(OfficeVariances[],ROW()-ROW(OfficeVariances[[#Headers],[4월]]),1),INDEX(OfficePlan[],,1),0),MATCH(OfficeVariances[[#Headers],[4월]],OfficeActual[#Headers],0)) -> (₩130.00) | G12: =INDEX(OfficePlan[],MATCH(INDEX(OfficeVariances[],ROW()-ROW(OfficeVariances[[#Headers],[5월]]),1),INDEX(OfficePlan[],,1),0),MATCH(OfficeVariances[[#Headers],[5월]],OfficePlan[#Headers],0))-INDEX(OfficeActual[],MATCH(INDEX(OfficeVariances[],ROW()-ROW(OfficeVariances[[#Headers],[5월]]),1),INDEX(OfficePlan[],,1),0),MATCH(OfficeVariances[[#Headers],[5월]],OfficeActual[#Headers],0)) -> ₩13.00 | H12: =INDEX(OfficePlan[],MATCH(INDEX(OfficeVariances[],ROW()-ROW(OfficeVariances[[#Headers],[6월]]),1),INDEX(OfficePlan[],,1),0),MATCH(OfficeVariances[[#Headers],[6월]],OfficePlan[#Headers],0))-INDEX(OfficeActual[],MATCH(INDEX(OfficeVariances[],ROW()-ROW(OfficeVariances[[#Headers],[6월]]),1),INDEX(OfficePlan[],,1),0),MATCH(OfficeVariances[[#Headers],[6월]],OfficeActual[#Headers],0)) -> ₩12.00 | I12: =INDEX(OfficePlan[],MATCH(INDEX(OfficeVariances[],ROW()-ROW(OfficeVariances[[#Headers],[7월]]),1),INDEX(OfficePlan[],,1),0),MATCH(OfficeVariances[[#Headers],[7월]],OfficePlan[#Headers],0))-INDEX(OfficeActual[],MATCH(INDEX(OfficeVariances[],ROW()-ROW(OfficeVariances[[#Headers],[7월]]),1),INDEX(OfficePlan[],,1),0),MATCH(OfficeVariances[[#Headers],[7월]],OfficeActual[#Headers],0)) -> ₩100.00 | J12: =INDEX(OfficePlan[],MATCH(INDEX(OfficeVariances[],ROW()-ROW(OfficeVariances[[#Headers],[8월]]),1),INDEX(OfficePlan[],,1),0),MATCH(OfficeVariances[[#Headers],[8월]],OfficePlan[#Headers],0))-INDEX(OfficeActual[],MATCH(INDEX(OfficeVariances[],ROW()-ROW(OfficeVariances[[#Headers],[8월]]),1),INDEX(OfficePlan[],,1),0),MATCH(OfficeVariances[[#Headers],[8월]],OfficeActual[#Headers],0)) -> ₩100.00 | K12: =INDEX(OfficePlan[],MATCH(INDEX(OfficeVariances[],ROW()-ROW(OfficeVariances[[#Headers],[9월]]),1),INDEX(OfficePlan[],,1),0),MATCH(OfficeVariances[[#Headers],[9월]],OfficePlan[#Headers],0))-INDEX(OfficeActual[],MATCH(INDEX(OfficeVariances[],ROW()-ROW(OfficeVariances[[#Headers],[9월]]),1),INDEX(OfficePlan[],,1),0),MATCH(OfficeVariances[[#Headers],[9월]],OfficeActual[#Headers],0)) -> ₩100.00 | L12: =INDEX(OfficePlan[],MATCH(INDEX(OfficeVariances[],ROW()-ROW(OfficeVariances[[#Headers],[10월]]),1),INDEX(OfficePlan[],,1),0),MATCH(OfficeVariances[[#Headers],[10월]],OfficePlan[#Headers],0))-INDEX(OfficeActual[],MATCH(INDEX(OfficeVariances[],ROW()-ROW(OfficeVariances[[#Headers],[10월]]),1),INDEX(OfficePlan[],,1),0),MATCH(OfficeVariances[[#Headers],[10월]],OfficeActual[#Headers],0)) -> ₩100.00 | M12: =INDEX(OfficePlan[],MATCH(INDEX(OfficeVariances[],ROW()-ROW(OfficeVariances[[#Headers],[11월]]),1),INDEX(OfficePlan[],,1),0),MATCH(OfficeVariances[[#Headers],[11월]],OfficePlan[#Headers],0))-INDEX(OfficeActual[],MATCH(INDEX(OfficeVariances[],ROW()-ROW(OfficeVariances[[#Headers],[11월]]),1),INDEX(OfficePlan[],,1),0),MATCH(OfficeVariances[[#Headers],[11월]],OfficeActual[#Headers],0)) -> ₩400.00 | N12: =INDEX(OfficePlan[],MATCH(INDEX(OfficeVariances[],ROW()-ROW(OfficeVariances[[#Headers],[12월]]),1),INDEX(OfficePlan[],,1),0),MATCH(OfficeVariances[[#Headers],[12월]],OfficePlan[#Headers],0))-INDEX(OfficeActual[],MATCH(INDEX(OfficeVariances[],ROW()-ROW(OfficeVariances[[#Headers],[12월]]),1),INDEX(OfficePlan[],,1),0),MATCH(OfficeVariances[[#Headers],[12월]],OfficeActual[#Headers],0)) -> ₩400.00 | O12: =SUM(OfficeVariances[[#This Row],[1월]:[12월]]) -> ₩1,076.00
B13: 전기 | C13: =INDEX(OfficePlan[],MATCH(INDEX(OfficeVariances[],ROW()-ROW(OfficeVariances[[#Headers],[1월]]),1),INDEX(OfficePlan[],,1),0),MATCH(OfficeVariances[[#Headers],[1월]],OfficePlan[#Headers],0))-INDEX(OfficeActual[],MATCH(INDEX(OfficeVariances[],ROW()-ROW(OfficeVariances[[#Headers],[1월]]),1),INDEX(OfficePlan[],,1),0),MATCH(OfficeVariances[[#Headers],[1월]],OfficeActual[#Headers],0)) -> ₩12.00 | D13: =INDEX(OfficePlan[],MATCH(INDEX(OfficeVariances[],ROW()-ROW(OfficeVariances[[#Headers],[2월]]),1),INDEX(OfficePlan[],,1),0),MATCH(OfficeVariances[[#Headers],[2월]],OfficePlan[#Headers],0))-INDEX(OfficeActual[],MATCH(INDEX(OfficeVariances[],ROW()-ROW(OfficeVariances[[#Headers],[2월]]),1),INDEX(OfficePlan[],,1),0),MATCH(OfficeVariances[[#Headers],[2월]],OfficeActual[#Headers],0)) -> ₩22.00 | E13: =INDEX(OfficePlan[],MATCH(INDEX(OfficeVariances[],ROW()-ROW(OfficeVariances[[#Headers],[3월]]),1),INDEX(OfficePlan[],,1),0),MATCH(OfficeVariances[[#Headers],[3월]],OfficePlan[#Headers],0))-INDEX(OfficeActual[],MATCH(INDEX(OfficeVariances[],ROW()-ROW(OfficeVariances[[#Headers],[3월]]),1),INDEX(OfficePlan[],,1),0),MATCH(OfficeVariances[[#Headers],[3월]],OfficeActual[#Headers],0)) -> ₩32.00 | F13: =INDEX(OfficePlan[],MATCH(INDEX(OfficeVariances[],ROW()-ROW(OfficeVariances[[#Headers],[4월]]),1),INDEX(OfficePlan[],,1),0),MATCH(OfficeVariances[[#Headers],[4월]],OfficePlan[#Headers],0))-INDEX(OfficeActual[],MATCH(INDEX(OfficeVariances[],ROW()-ROW(OfficeVariances[[#Headers],[4월]]),1),INDEX(OfficePlan[],,1),0),MATCH(OfficeVariances[[#Headers],[4월]],OfficeActual[#Headers],0)) -> ₩1.00 | G13: =INDEX(OfficePlan[],MATCH(INDEX(OfficeVariances[],ROW()-ROW(OfficeVariances[[#Headers],[5월]]),1),INDEX(OfficePlan[],,1),0),MATCH(OfficeVariances[[#Headers],[5월]],OfficePlan[#Headers],0))-INDEX(OfficeActual[],MATCH(INDEX(OfficeVariances[],ROW()-ROW(OfficeVariances[[#Headers],[5월]]),1),INDEX(OfficePlan[],,1),0),MATCH(OfficeVariances[[#Headers],[5월]],OfficeActual[#Headers],0)) -> (₩6.00) | H13: =INDEX(OfficePlan[],MATCH(INDEX(OfficeVariances[],ROW()-ROW(OfficeVariances[[#Headers],[6월]]),1),INDEX(OfficePlan[],,1),0),MATCH(OfficeVariances[[#Headers],[6월]],OfficePlan[#Headers],0))-INDEX(OfficeActual[],MATCH(INDEX(OfficeVariances[],ROW()-ROW(OfficeVariances[[#Headers],[6월]]),1),INDEX(OfficePlan[],,1),0),MATCH(OfficeVariances[[#Headers],[6월]],OfficeActual[#Headers],0)) -> ₩10.00 | I13: =INDEX(OfficePlan[],MATCH(INDEX(OfficeVariances[],ROW()-ROW(OfficeVariances[[#Headers],[7월]]),1),INDEX(OfficePlan[],,1),0),MATCH(OfficeVariances[[#Headers],[7월]],OfficePlan[#Headers],0))-INDEX(OfficeActual[],MATCH(INDEX(OfficeVariances[],ROW()-ROW(OfficeVariances[[#Headers],[7월]]),1),INDEX(OfficePlan[],,1),0),MATCH(OfficeVariances[[#Headers],[7월]],OfficeActual[#Headers],0)) -> ₩300.00 | J13: =INDEX(OfficePlan[],MATCH(INDEX(OfficeVariances[],ROW()-ROW(OfficeVariances[[#Headers],[8월]]),1),INDEX(OfficePlan[],,1),0),MATCH(OfficeVariances[[#Headers],[8월]],OfficePlan[#Headers],0))-INDEX(OfficeActual[],MATCH(INDEX(OfficeVariances[],ROW()-ROW(OfficeVariances[[#Headers],[8월]]),1),INDEX(OfficePlan[],,1),0),MATCH(OfficeVariances[[#Headers],[8월]],OfficeActual[#Headers],0)) -> ₩300.00 | K13: =INDEX(OfficePlan[],MATCH(INDEX(OfficeVariances[],ROW()-ROW(OfficeVariances[[#Headers],[9월]]),1),INDEX(OfficePlan[],,1),0),MATCH(OfficeVariances[[#Headers],[9월]],OfficePlan[#Headers],0))-INDEX(OfficeActual[],MATCH(INDEX(OfficeVariances[],ROW()-ROW(OfficeVariances[[#Headers],[9월]]),1),INDEX(OfficePlan[],,1),0),MATCH(OfficeVariances[[#Headers],[9월]],OfficeActual[#Headers],0)) -> ₩300.00 | L13: =INDEX(OfficePlan[],MATCH(INDEX(OfficeVariances[],ROW()-ROW(OfficeVariances[[#Headers],[10월]]),1),INDEX(OfficePlan[],,1),0),MATCH(OfficeVariances[[#Headers],[10월]],OfficePlan[#Headers],0))-INDEX(OfficeActual[],MATCH(INDEX(OfficeVariances[],ROW()-ROW(OfficeVariances[[#Headers],[10월]]),1),INDEX(OfficePlan[],,1),0),MATCH(OfficeVariances[[#Headers],[10월]],OfficeActual[#Headers],0)) -> ₩300.00 | M13: =INDEX(OfficePlan[],MATCH(INDEX(OfficeVariances[],ROW()-ROW(OfficeVariances[[#Headers],[11월]]),1),INDEX(OfficePlan[],,1),0),MATCH(OfficeVariances[[#Headers],[11월]],OfficePlan[#Headers],0))-INDEX(OfficeActual[],MATCH(INDEX(OfficeVariances[],ROW()-ROW(OfficeVariances[[#Headers],[11월]]),1),INDEX(OfficePlan[],,1),0),MATCH(OfficeVariances[[#Headers],[11월]],OfficeActual[#Headers],0)) -> ₩300.00 | N13: =INDEX(OfficePlan[],MATCH(INDEX(OfficeVariances[],ROW()-ROW(OfficeVariances[[#Headers],[12월]]),1),INDEX(OfficePlan[],,1),0),MATCH(OfficeVariances[[#Headers],[12월]],OfficePlan[#Headers],0))-INDEX(OfficeActual[],MATCH(INDEX(OfficeVariances[],ROW()-ROW(OfficeVariances[[#Headers],[12월]]),1),INDEX(OfficePlan[],,1),0),MATCH(OfficeVariances[[#Headers],[12월]],OfficeActual[#Headers],0)) -> ₩300.00 | O13: =SUM(OfficeVariances[[#This Row],[1월]:[12월]]) -> ₩1,871.00
B14: 수도 | C14: =INDEX(OfficePlan[],MATCH(INDEX(OfficeVariances[],ROW()-ROW(OfficeVariances[[#Headers],[1월]]),1),INDEX(OfficePlan[],,1),0),MATCH(OfficeVariances[[#Headers],[1월]],OfficePlan[#Headers],0))-INDEX(OfficeActual[],MATCH(INDEX(OfficeVariances[],ROW()-ROW(OfficeVariances[[#Headers],[1월]]),1),INDEX(OfficePlan[],,1),0),MATCH(OfficeVariances[[#Headers],[1월]],OfficeActual[#Headers],0)) -> ₩5.00 | D14: =INDEX(OfficePlan[],MATCH(INDEX(OfficeVariances[],ROW()-ROW(OfficeVariances[[#Headers],[2월]]),1),INDEX(OfficePlan[],,1),0),MATCH(OfficeVariances[[#Headers],[2월]],OfficePlan[#Headers],0))-INDEX(OfficeActual[],MATCH(INDEX(OfficeVariances[],ROW()-ROW(OfficeVariances[[#Headers],[2월]]),1),INDEX(OfficePlan[],,1),0),MATCH(OfficeVariances[[#Headers],[2월]],OfficeActual[#Headers],0)) -> ₩7.00 | E14: =INDEX(OfficePlan[],MATCH(INDEX(OfficeVariances[],ROW()-ROW(OfficeVariances[[#Headers],[3월]]),1),INDEX(OfficePlan[],,1),0),MATCH(OfficeVariances[[#Headers],[3월]],OfficePlan[#Headers],0))-INDEX(OfficeActual[],MATCH(INDEX(OfficeVariances[],ROW()-ROW(OfficeVariances[[#Headers],[3월]]),1),INDEX(OfficePlan[],,1),0),MATCH(OfficeVariances[[#Headers],[3월]],OfficeActual[#Headers],0)) -> ₩6.00 | F14: =INDEX(OfficePlan[],MATCH(INDEX(OfficeVariances[],ROW()-ROW(OfficeVariances[[#Headers],[4월]]),1),INDEX(OfficePlan[],,1),0),MATCH(OfficeVariances[[#Headers],[4월]],OfficePlan[#Headers],0))-INDEX(OfficeActual[],MATCH(INDEX(OfficeVariances[],ROW()-ROW(OfficeVariances[[#Headers],[4월]]),1),INDEX(OfficePlan[],,1),0),MATCH(OfficeVariances[[#Headers],[4월]],OfficeActual[#Headers],0)) -> ₩4.00 | G14: =INDEX(OfficePlan[],MATCH(INDEX(OfficeVariances[],ROW()-ROW(OfficeVariances[[#Headers],[5월]]),1),INDEX(OfficePlan[],,1),0),MATCH(OfficeVariances[[#Headers],[5월]],OfficePlan[#Headers],0))-INDEX(OfficeActual[],MATCH(INDEX(OfficeVariances[],ROW()-ROW(OfficeVariances[[#Headers],[5월]]),1),INDEX(OfficePlan[],,1),0),MATCH(OfficeVariances[[#Headers],[5월]],OfficeActual[#Headers],0)) -> ₩6.00 | H14: =INDEX(OfficePlan[],MATCH(INDEX(OfficeVariances[],ROW()-ROW(OfficeVariances[[#Headers],[6월]]),1),INDEX(OfficePlan[],,1),0),MATCH(OfficeVariances[[#Headers],[6월]],OfficePlan[#Headers],0))-INDEX(OfficeActual[],MATCH(INDEX(OfficeVariances[],ROW()-ROW(OfficeVariances[[#Headers],[6월]]),1),INDEX(OfficePlan[],,1),0),MATCH(OfficeVariances[[#Headers],[6월]],OfficeActual[#Headers],0)) -> ₩4.00 | I14: =INDEX(OfficePlan[],MATCH(INDEX(OfficeVariances[],ROW()-ROW(OfficeVariances[[#Headers],[7월]]),1),INDEX(OfficePlan[],,1),0),MATCH(OfficeVariances[[#Headers],[7월]],OfficePlan[#Headers],0))-INDEX(OfficeActual[],MATCH(INDEX(OfficeVariances[],ROW()-ROW(OfficeVariances[[#Headers],[7월]]),1),INDEX(OfficePlan[],,1),0),MATCH(OfficeVariances[[#Headers],[7월]],OfficeActual[#Headers],0)) -> ₩40.00 | J14: =INDEX(OfficePlan[],MATCH(INDEX(OfficeVariances[],ROW()-ROW(OfficeVariances[[#Headers],[8월]]),1),INDEX(OfficePlan[],,1),0),MATCH(OfficeVariances[[#Headers],[8월]],OfficePlan[#Headers],0))-INDEX(OfficeActual[],MATCH(INDEX(OfficeVariances[],ROW()-ROW(OfficeVariances[[#Headers],[8월]]),1),INDEX(OfficePlan[],,1),0),MATCH(OfficeVariances[[#Headers],[8월]],OfficeActual[#Headers],0)) -> ₩40.00 | K14: =INDEX(OfficePlan[],MATCH(INDEX(OfficeVariances[],ROW()-ROW(OfficeVariances[[#Headers],[9월]]),1),INDEX(OfficePlan[],,1),0),MATCH(OfficeVariances[[#Headers],[9월]],OfficePlan[#Headers],0))-INDEX(OfficeActual[],MATCH(INDEX(OfficeVariances[],ROW()-ROW(OfficeVariances[[#Headers],[9월]]),1),INDEX(OfficePlan[],,1),0),MATCH(OfficeVariances[[#Headers],[9월]],OfficeActual[#Headers],0)) -> ₩40.00 | L14: =INDEX(OfficePlan[],MATCH(INDEX(OfficeVariances[],ROW()-ROW(OfficeVariances[[#Headers],[10월]]),1),INDEX(OfficePlan[],,1),0),MATCH(OfficeVariances[[#Headers],[10월]],OfficePlan[#Headers],0))-INDEX(OfficeActual[],MATCH(INDEX(OfficeVariances[],ROW()-ROW(OfficeVariances[[#Headers],[10월]]),1),INDEX(OfficePlan[],,1),0),MATCH(OfficeVariances[[#Headers],[10월]],OfficeActual[#Headers],0)) -> ₩40.00 | M14: =INDEX(OfficePlan[],MATCH(INDEX(OfficeVariances[],ROW()-ROW(OfficeVariances[[#Headers],[11월]]),1),INDEX(OfficePlan[],,1),0),MATCH(OfficeVariances[[#Headers],[11월]],OfficePlan[#Headers],0))-INDEX(OfficeActual[],MATCH(INDEX(OfficeVariances[],ROW()-ROW(OfficeVariances[[#Headers],[11월]]),1),INDEX(OfficePlan[],,1),0),MATCH(OfficeVariances[[#Headers],[11월]],OfficeActual[#Headers],0)) -> ₩40.00 | N14: =INDEX(OfficePlan[],MATCH(INDEX(OfficeVariances[],ROW()-ROW(OfficeVariances[[#Headers],[12월]]),1),INDEX(OfficePlan[],,1),0),MATCH(OfficeVariances[[#Headers],[12월]],OfficePlan[#Headers],0))-INDEX(OfficeActual[],MATCH(INDEX(OfficeVariances[],ROW()-ROW(OfficeVariances[[#Headers],[12월]]),1),INDEX(OfficePlan[],,1),0),MATCH(OfficeVariances[[#Headers],[12월]],OfficeActual[#Headers],0)) -> ₩40.00 | O14: =SUM(OfficeVariances[[#This Row],[1월]:[12월]]) -> ₩272.00
B15: 전화 | C15: =INDEX(OfficePlan[],MATCH(INDEX(OfficeVariances[],ROW()-ROW(OfficeVariances[[#Headers],[1월]]),1),INDEX(OfficePlan[],,1),0),MATCH(OfficeVariances[[#Headers],[1월]],OfficePlan[#Headers],0))-INDEX(OfficeActual[],MATCH(INDEX(OfficeVariances[],ROW()-ROW(OfficeVariances[[#Headers],[1월]]),1),INDEX(OfficePlan[],,1),0),MATCH(OfficeVariances[[#Headers],[1월]],OfficeActual[#Headers],0)) -> ₩26.00 | D15: =INDEX(OfficePlan[],MATCH(INDEX(OfficeVariances[],ROW()-ROW(OfficeVariances[[#Headers],[2월]]),1),INDEX(OfficePlan[],,1),0),MATCH(OfficeVariances[[#Headers],[2월]],OfficePlan[#Headers],0))-INDEX(OfficeActual[],MATCH(INDEX(OfficeVariances[],ROW()-ROW(OfficeVariances[[#Headers],[2월]]),1),INDEX(OfficePlan[],,1),0),MATCH(OfficeVariances[[#Headers],[2월]],OfficeActual[#Headers],0)) -> ₩15.00 | E15: =INDEX(OfficePlan[],MATCH(INDEX(OfficeVariances[],ROW()-ROW(OfficeVariances[[#Headers],[3월]]),1),INDEX(OfficePlan[],,1),0),MATCH(OfficeVariances[[#Headers],[3월]],OfficePlan[#Headers],0))-INDEX(OfficeActual[],MATCH(INDEX(OfficeVariances[],ROW()-ROW(OfficeVariances[[#Headers],[3월]]),1),INDEX(OfficePlan[],,1),0),MATCH(OfficeVariances[[#Headers],[3월]],OfficeActual[#Headers],0)) -> (₩15.00) | F15: =INDEX(OfficePlan[],MATCH(INDEX(OfficeVariances[],ROW()-ROW(OfficeVariances[[#Headers],[4월]]),1),INDEX(OfficePlan[],,1),0),MATCH(OfficeVariances[[#Headers],[4월]],OfficePlan[#Headers],0))-INDEX(OfficeActual[],MATCH(INDEX(OfficeVariances[],ROW()-ROW(OfficeVariances[[#Headers],[4월]]),1),INDEX(OfficePlan[],,1),0),MATCH(OfficeVariances[[#Headers],[4월]],OfficeActual[#Headers],0)) -> ₩5.00 | G15: =INDEX(OfficePlan[],MATCH(INDEX(OfficeVariances[],ROW()-ROW(OfficeVariances[[#Headers],[5월]]),1),INDEX(OfficePlan[],,1),0),MATCH(OfficeVariances[[#Headers],[5월]],OfficePlan[#Headers],0))-INDEX(OfficeActual[],MATCH(INDEX(OfficeVariances[],ROW()-ROW(OfficeVariances[[#Headers],[5월]]),1),INDEX(OfficePlan[],,1),0),MATCH(OfficeVariances[[#Headers],[5월]],OfficeActual[#Headers],0)) -> ₩5.00 | H15: =INDEX(OfficePlan[],MATCH(INDEX(OfficeVariances[],ROW()-ROW(OfficeVariances[[#Headers],[6월]]),1),INDEX(OfficePlan[],,1),0),MATCH(OfficeVariances[[#Headers],[6월]],OfficePlan[#Headers],0))-INDEX(OfficeActual[],MATCH(INDEX(OfficeVariances[],ROW()-ROW(OfficeVariances[[#Headers],[6월]]),1),INDEX(OfficePlan[],,1),0),MATCH(OfficeVariances[[#Headers],[6월]],OfficeActual[#Headers],0)) -> ₩30.00 | I15: =INDEX(OfficePlan[],MATCH(INDEX(OfficeVariances[],ROW()-ROW(OfficeVariances[[#Headers],[7월]]),1),INDEX(OfficePlan[],,1),0),MATCH(OfficeVariances[[#Headers],[7월]],OfficePlan[#Headers],0))-INDEX(OfficeActual[],MATCH(INDEX(OfficeVariances[],ROW()-ROW(OfficeVariances[[#Headers],[7월]]),1),INDEX(OfficePlan[],,1),0),MATCH(OfficeVariances[[#Headers],[7월]],OfficeActual[#Headers],0)) -> ₩250.00 | J15: =INDEX(OfficePlan[],MATCH(INDEX(OfficeVariances[],ROW()-ROW(OfficeVariances[[#Headers],[8월]]),1),INDEX(OfficePlan[],,1),0),MATCH(OfficeVariances[[#Headers],[8월]],OfficePlan[#Headers],0))-INDEX(OfficeActual[],MATCH(INDEX(OfficeVariances[],ROW()-ROW(OfficeVariances[[#Headers],[8월]]),1),INDEX(OfficePlan[],,1),0),MATCH(OfficeVariances[[#Headers],[8월]],OfficeActual[#Headers],0)) -> ₩250.00 | K15: =INDEX(OfficePlan[],MATCH(INDEX(OfficeVariances[],ROW()-ROW(OfficeVariances[[#Headers],[9월]]),1),INDEX(OfficePlan[],,1),0),MATCH(OfficeVariances[[#Headers],[9월]],OfficePlan[#Headers],0))-INDEX(OfficeActual[],MATCH(INDEX(OfficeVariances[],ROW()-ROW(OfficeVariances[[#Headers],[9월]]),1),INDEX(OfficePlan[],,1),0),MATCH(OfficeVariances[[#Headers],[9월]],OfficeActual[#Headers],0)) -> ₩250.00 | L15: =INDEX(OfficePlan[],MATCH(INDEX(OfficeVariances[],ROW()-ROW(OfficeVariances[[#Headers],[10월]]),1),INDEX(OfficePlan[],,1),0),MATCH(OfficeVariances[[#Headers],[10월]],OfficePlan[#Headers],0))-INDEX(OfficeActual[],MATCH(INDEX(OfficeVariances[],ROW()-ROW(OfficeVariances[[#Headers],[10월]]),1),INDEX(OfficePlan[],,1),0),MATCH(OfficeVariances[[#Headers],[10월]],OfficeActual[#Headers],0)) -> ₩250.00 | M15: =INDEX(OfficePlan[],MATCH(INDEX(OfficeVariances[],ROW()-ROW(OfficeVariances[[#Headers],[11월]]),1),INDEX(OfficePlan[],,1),0),MATCH(OfficeVariances[[#Headers],[11월]],OfficePlan[#Headers],0))-INDEX(OfficeActual[],MATCH(INDEX(OfficeVariances[],ROW()-ROW(OfficeVariances[[#Headers],[11월]]),1),INDEX(OfficePlan[],,1),0),MATCH(OfficeVariances[[#Headers],[11월]],OfficeActual[#Headers],0)) -> ₩250.00 | N15: =INDEX(OfficePlan[],MATCH(INDEX(OfficeVariances[],ROW()-ROW(OfficeVariances[[#Headers],[12월]]),1),INDEX(OfficePlan[],,1),0),MATCH(OfficeVariances[[#Headers],[12월]],OfficePlan[#Headers],0))-INDEX(OfficeActual[],MATCH(INDEX(OfficeVariances[],ROW()-ROW(OfficeVariances[[#Headers],[12월]]),1),INDEX(OfficePlan[],,1),0),MATCH(OfficeVariances[[#Headers],[12월]],OfficeActual[#Headers],0)) -> ₩250.00 | O15: =SUM(OfficeVariances[[#This Row],[1월]:[12월]]) -> ₩1,566.00
B16: 인터넷 사용 | C16: =INDEX(OfficePlan[],MATCH(INDEX(OfficeVariances[],ROW()-ROW(OfficeVariances[[#Headers],[1월]]),1),INDEX(OfficePlan[],,1),0),MATCH(OfficeVariances[[#Headers],[1월]],OfficePlan[#Headers],0))-INDEX(OfficeActual[],MATCH(INDEX(OfficeVariances[],ROW()-ROW(OfficeVariances[[#Headers],[1월]]),1),INDEX(OfficePlan[],,1),0),MATCH(OfficeVariances[[#Headers],[1월]],OfficeActual[#Headers],0)) -> ₩0.00 | D16: =INDEX(OfficePlan[],MATCH(INDEX(OfficeVariances[],ROW()-ROW(OfficeVariances[[#Headers],[2월]]),1),INDEX(OfficePlan[],,1),0),MATCH(OfficeVariances[[#Headers],[2월]],OfficePlan[#Headers],0))-INDEX(OfficeActual[],MATCH(INDEX(OfficeVariances[],ROW()-ROW(OfficeVariances[[#Headers],[2월]]),1),INDEX(OfficePlan[],,1),0),MATCH(OfficeVariances[[#Headers],[2월]],OfficeActual[#Headers],0)) -> ₩0.00 | E16: =INDEX(OfficePlan[],MATCH(INDEX(OfficeVariances[],ROW()-ROW(OfficeVariances[[#Headers],[3월]]),1),INDEX(OfficePlan[],,1),0),MATCH(OfficeVariances[[#Headers],[3월]],OfficePlan[#Headers],0))-INDEX(OfficeActual[],MATCH(INDEX(OfficeVariances[],ROW()-ROW(OfficeVariances[[#Headers],[3월]]),1),INDEX(OfficePlan[],,1),0),MATCH(OfficeVariances[[#Headers],[3월]],OfficeActual[#Headers],0)) -> ₩0.00 | F16: =INDEX(OfficePlan[],MATCH(INDEX(OfficeVariances[],ROW()-ROW(OfficeVariances[[#Headers],[4월]]),1),INDEX(OfficePlan[],,1),0),MATCH(OfficeVariances[[#Headers],[4월]],OfficePlan[#Headers],0))-INDEX(OfficeActual[],MATCH(INDEX(OfficeVariances[],ROW()-ROW(OfficeVariances[[#Headers],[4월]]),1),INDEX(OfficePlan[],,1),0),MATCH(OfficeVariances[[#Headers],[4월]],OfficeActual[#Headers],0)) -> ₩0.00 | G16: =INDEX(OfficePlan[],MATCH(INDEX(OfficeVariances[],ROW()-ROW(OfficeVariances[[#Headers],[5월]]),1),INDEX(OfficePlan[],,1),0),MATCH(OfficeVariances[[#Headers],[5월]],OfficePlan[#Headers],0))-INDEX(OfficeActual[],MATCH(INDEX(OfficeVariances[],ROW()-ROW(OfficeVariances[[#Headers],[5월]]),1),INDEX(OfficePlan[],,1),0),MATCH(OfficeVariances[[#Headers],[5월]],OfficeActual[#Headers],0)) -> ₩0.00 | H16: =INDEX(OfficePlan[],MATCH(INDEX(OfficeVariances[],ROW()-ROW(OfficeVariances[[#Headers],[6월]]),1),INDEX(OfficePlan[],,1),0),MATCH(OfficeVariances[[#Headers],[6월]],OfficePlan[#Headers],0))-INDEX(OfficeActual[],MATCH(INDEX(OfficeVariances[],ROW()-ROW(OfficeVariances[[#Headers],[6월]]),1),INDEX(OfficePlan[],,1),0),MATCH(OfficeVariances[[#Headers],[6월]],OfficeActual[#Headers],0)) -> ₩0.00 | I16: =INDEX(OfficePlan[],MATCH(INDEX(OfficeVariances[],ROW()-ROW(OfficeVariances[[#Headers],[7월]]),1),INDEX(OfficePlan[],,1),0),MATCH(OfficeVariances[[#Headers],[7월]],OfficePlan[#Headers],0))-INDEX(OfficeActual[],MATCH(INDEX(OfficeVariances[],ROW()-ROW(OfficeVariances[[#Headers],[7월]]),1),INDEX(OfficePlan[],,1),0),MATCH(OfficeVariances[[#Headers],[7월]],OfficeActual[#Headers],0)) -> ₩180.00 | J16: =INDEX(OfficePlan[],MATCH(INDEX(OfficeVariances[],ROW()-ROW(OfficeVariances[[#Headers],[8월]]),1),INDEX(OfficePlan[],,1),0),MATCH(OfficeVariances[[#Headers],[8월]],OfficePlan[#Headers],0))-INDEX(OfficeActual[],MATCH(INDEX(OfficeVariances[],ROW()-ROW(OfficeVariances[[#Headers],[8월]]),1),INDEX(OfficePlan[],,1),0),MATCH(OfficeVariances[[#Headers],[8월]],OfficeActual[#Headers],0)) -> ₩180.00 | K16: =INDEX(OfficePlan[],MATCH(INDEX(OfficeVariances[],ROW()-ROW(OfficeVariances[[#Headers],[9월]]),1),INDEX(OfficePlan[],,1),0),MATCH(OfficeVariances[[#Headers],[9월]],OfficePlan[#Headers],0))-INDEX(OfficeActual[],MATCH(INDEX(OfficeVariances[],ROW()-ROW(OfficeVariances[[#Headers],[9월]]),1),INDEX(OfficePlan[],,1),0),MATCH(OfficeVariances[[#Headers],[9월]],OfficeActual[#Headers],0)) -> ₩180.00 | L16: =INDEX(OfficePlan[],MATCH(INDEX(OfficeVariances[],ROW()-ROW(OfficeVariances[[#Headers],[10월]]),1),INDEX(OfficePlan[],,1),0),MATCH(OfficeVariances[[#Headers],[10월]],OfficePlan[#Headers],0))-INDEX(OfficeActual[],MATCH(INDEX(OfficeVariances[],ROW()-ROW(OfficeVariances[[#Headers],[10월]]),1),INDEX(OfficePlan[],,1),0),MATCH(OfficeVariances[[#Headers],[10월]],OfficeActual[#Headers],0)) -> ₩180.00 | M16: =INDEX(OfficePlan[],MATCH(INDEX(OfficeVariances[],ROW()-ROW(OfficeVariances[[#Headers],[11월]]),1),INDEX(OfficePlan[],,1),0),MATCH(OfficeVariances[[#Headers],[11월]],OfficePlan[#Headers],0))-INDEX(OfficeActual[],MATCH(INDEX(OfficeVariances[],ROW()-ROW(OfficeVariances[[#Headers],[11월]]),1),INDEX(OfficePlan[],,1),0),MATCH(OfficeVariances[[#Headers],[11월]],OfficeActual[#Headers],0)) -> ₩180.00 | N16: =INDEX(OfficePlan[],MATCH(INDEX(OfficeVariances[],ROW()-ROW(OfficeVariances[[#Headers],[12월]]),1),INDEX(OfficePlan[],,1),0),MATCH(OfficeVariances[[#Headers],[12월]],OfficePlan[#Headers],0))-INDEX(OfficeActual[],MATCH(INDEX(OfficeVariances[],ROW()-ROW(OfficeVariances[[#Headers],[12월]]),1),INDEX(OfficePlan[],,1),0),MATCH(OfficeVariances[[#Headers],[12월]],OfficeActual[#Headers],0)) -> ₩180.00 | O16: =SUM(OfficeVariances[[#This Row],[1월]:[12월]]) -> ₩1,080.00
B17: 사무용품 | C17: =INDEX(OfficePlan[],MATCH(INDEX(OfficeVariances[],ROW()-ROW(OfficeVariances[[#Headers],[1월]]),1),INDEX(OfficePlan[],,1),0),MATCH(OfficeVariances[[#Headers],[1월]],OfficePlan[#Headers],0))-INDEX(OfficeActual[],MATCH(INDEX(OfficeVariances[],ROW()-ROW(OfficeVariances[[#Headers],[1월]]),1),INDEX(OfficePlan[],,1),0),MATCH(OfficeVariances[[#Headers],[1월]],OfficeActual[#Headers],0)) -> (₩56.00) | D17: =INDEX(OfficePlan[],MATCH(INDEX(OfficeVariances[],ROW()-ROW(OfficeVariances[[#Headers],[2월]]),1),INDEX(OfficePlan[],,1),0),MATCH(OfficeVariances[[#Headers],[2월]],OfficePlan[#Headers],0))-INDEX(OfficeActual[],MATCH(INDEX(OfficeVariances[],ROW()-ROW(OfficeVariances[[#Headers],[2월]]),1),INDEX(OfficePlan[],,1),0),MATCH(OfficeVariances[[#Headers],[2월]],OfficeActual[#Headers],0)) -> ₩58.00 | E17: =INDEX(OfficePlan[],MATCH(INDEX(OfficeVariances[],ROW()-ROW(OfficeVariances[[#Headers],[3월]]),1),INDEX(OfficePlan[],,1),0),MATCH(OfficeVariances[[#Headers],[3월]],OfficePlan[#Headers],0))-INDEX(OfficeActual[],MATCH(INDEX(OfficeVariances[],ROW()-ROW(OfficeVariances[[#Headers],[3월]]),1),INDEX(OfficePlan[],,1),0),MATCH(OfficeVariances[[#Headers],[3월]],OfficeActual[#Headers],0)) -> ₩40.00 | F17: =INDEX(OfficePlan[],MATCH(INDEX(OfficeVariances[],ROW()-ROW(OfficeVariances[[#Headers],[4월]]),1),INDEX(OfficePlan[],,1),0),MATCH(OfficeVariances[[#Headers],[4월]],OfficePlan[#Headers],0))-INDEX(OfficeActual[],MATCH(INDEX(OfficeVariances[],ROW()-ROW(OfficeVariances[[#Headers],[4월]]),1),INDEX(OfficePlan[],,1),0),MATCH(OfficeVariances[[#Headers],[4월]],OfficeActual[#Headers],0)) -> (₩21.00) | G17: =INDEX(OfficePlan[],MATCH(INDEX(OfficeVariances[],ROW()-ROW(OfficeVariances[[#Headers],[5월]]),1),INDEX(OfficePlan[],,1),0),MATCH(OfficeVariances[[#Headers],[5월]],OfficePlan[#Headers],0))-INDEX(OfficeActual[],MATCH(INDEX(OfficeVariances[],ROW()-ROW(OfficeVariances[[#Headers],[5월]]),1),INDEX(OfficePlan[],,1),0),MATCH(OfficeVariances[[#Headers],[5월]],OfficeActual[#Headers],0)) -> (₩56.00) | H17: =INDEX(OfficePlan[],MATCH(INDEX(OfficeVariances[],ROW()-ROW(OfficeVariances[[#Headers],[6월]]),1),INDEX(OfficePlan[],,1),0),MATCH(OfficeVariances[[#Headers],[6월]],OfficePlan[#Headers],0))-INDEX(OfficeActual[],MATCH(INDEX(OfficeVariances[],ROW()-ROW(OfficeVariances[[#Headers],[6월]]),1),INDEX(OfficePlan[],,1),0),MATCH(OfficeVariances[[#Headers],[6월]],OfficeActual[#Headers],0)) -> (₩40.00) | I17: =INDEX(OfficePlan[],MATCH(INDEX(OfficeVariances[],ROW()-ROW(OfficeVariances[[#Headers],[7월]]),1),INDEX(OfficePlan[],,1),0),MATCH(OfficeVariances[[#Headers],[7월]],OfficePlan[#Headers],0))-INDEX(OfficeActual[],MATCH(INDEX(OfficeVariances[],ROW()-ROW(OfficeVariances[[#Headers],[7월]]),1),INDEX(OfficePlan[],,1),0),MATCH(OfficeVariances[[#Headers],[7월]],OfficeActual[#Headers],0)) -> ₩200.00 | J17: =INDEX(OfficePlan[],MATCH(INDEX(OfficeVariances[],ROW()-ROW(OfficeVariances[[#Headers],[8월]]),1),INDEX(OfficePlan[],,1),0),MATCH(OfficeVariances[[#Headers],[8월]],OfficePlan[#Headers],0))-INDEX(OfficeActual[],MATCH(INDEX(OfficeVariances[],ROW()-ROW(OfficeVariances[[#Headers],[8월]]),1),INDEX(OfficePlan[],,1),0),MATCH(OfficeVariances[[#Headers],[8월]],OfficeActual[#Headers],0)) -> ₩200.00 | K17: =INDEX(OfficePlan[],MATCH(INDEX(OfficeVariances[],ROW()-ROW(OfficeVariances[[#Headers],[9월]]),1),INDEX(OfficePlan[],,1),0),MATCH(OfficeVariances[[#Headers],[9월]],OfficePlan[#Headers],0))-INDEX(OfficeActual[],MATCH(INDEX(OfficeVariances[],ROW()-ROW(OfficeVariances[[#Headers],[9월]]),1),INDEX(OfficePlan[],,1),0),MATCH(OfficeVariances[[#Headers],[9월]],OfficeActual[#Headers],0)) -> ₩200.00 | L17: =INDEX(OfficePlan[],MATCH(INDEX(OfficeVariances[],ROW()-ROW(OfficeVariances[[#Headers],[10월]]),1),INDEX(OfficePlan[],,1),0),MATCH(OfficeVariances[[#Headers],[10월]],OfficePlan[#Headers],0))-INDEX(OfficeActual[],MATCH(INDEX(OfficeVariances[],ROW()-ROW(OfficeVariances[[#Headers],[10월]]),1),INDEX(OfficePlan[],,1),0),MATCH(OfficeVariances[[#Headers],[10월]],OfficeActual[#Headers],0)) -> ₩200.00 | M17: =INDEX(OfficePlan[],MATCH(INDEX(OfficeVariances[],ROW()-ROW(OfficeVariances[[#Headers],[11월]]),1),INDEX(OfficePlan[],,1),0),MATCH(OfficeVariances[[#Headers],[11월]],OfficePlan[#Headers],0))-INDEX(OfficeActual[],MATCH(INDEX(OfficeVariances[],ROW()-ROW(OfficeVariances[[#Headers],[11월]]),1),INDEX(OfficePlan[],,1),0),MATCH(OfficeVariances[[#Headers],[11월]],OfficeActual[#Headers],0)) -> ₩200.00 | N17: =INDEX(OfficePlan[],MATCH(INDEX(OfficeVariances[],ROW()-ROW(OfficeVariances[[#Headers],[12월]]),1),INDEX(OfficePlan[],,1),0),MATCH(OfficeVariances[[#Headers],[12월]],OfficePlan[#Headers],0))-INDEX(OfficeActual[],MATCH(INDEX(OfficeVariances[],ROW()-ROW(OfficeVariances[[#Headers],[12월]]),1),INDEX(OfficePlan[],,1),0),MATCH(OfficeVariances[[#Headers],[12월]],OfficeActual[#Headers],0)) -> ₩200.00 | O17: =SUM(OfficeVariances[[#This Row],[1월]:[12월]]) -> ₩1,125.00
B18: 보안 | C18: =INDEX(OfficePlan[],MATCH(INDEX(OfficeVariances[],ROW()-ROW(OfficeVariances[[#Headers],[1월]]),1),INDEX(OfficePlan[],,1),0),MATCH(OfficeVariances[[#Headers],[1월]],OfficePlan[#Headers],0))-INDEX(OfficeActual[],MATCH(INDEX(OfficeVariances[],ROW()-ROW(OfficeVariances[[#Headers],[1월]]),1),INDEX(OfficePlan[],,1),0),MATCH(OfficeVariances[[#Headers],[1월]],OfficeActual[#Headers],0)) -> ₩0.00 | D18: =INDEX(OfficePlan[],MATCH(INDEX(OfficeVariances[],ROW()-ROW(OfficeVariances[[#Headers],[2월]]),1),INDEX(OfficePlan[],,1),0),MATCH(OfficeVariances[[#Headers],[2월]],OfficePlan[#Headers],0))-INDEX(OfficeActual[],MATCH(INDEX(OfficeVariances[],ROW()-ROW(OfficeVariances[[#Headers],[2월]]),1),INDEX(OfficePlan[],,1),0),MATCH(OfficeVariances[[#Headers],[2월]],OfficeActual[#Headers],0)) -> ₩0.00 | E18: =INDEX(OfficePlan[],MATCH(INDEX(OfficeVariances[],ROW()-ROW(OfficeVariances[[#Headers],[3월]]),1),INDEX(OfficePlan[],,1),0),MATCH(OfficeVariances[[#Headers],[3월]],OfficePlan[#Headers],0))-INDEX(OfficeActual[],MATCH(INDEX(OfficeVariances[],ROW()-ROW(OfficeVariances[[#Headers],[3월]]),1),INDEX(OfficePlan[],,1),0),MATCH(OfficeVariances[[#Headers],[3월]],OfficeActual[#Headers],0)) -> ₩0.00 | F18: =INDEX(OfficePlan[],MATCH(INDEX(OfficeVariances[],ROW()-ROW(OfficeVariances[[#Headers],[4월]]),1),INDEX(OfficePlan[],,1),0),MATCH(OfficeVariances[[#Headers],[4월]],OfficePlan[#Headers],0))-INDEX(OfficeActual[],MATCH(INDEX(OfficeVariances[],ROW()-ROW(OfficeVariances[[#Headers],[4월]]),1),INDEX(OfficePlan[],,1),0),MATCH(OfficeVariances[[#Headers],[4월]],OfficeActual[#Headers],0)) -> ₩0.00 | G18: =INDEX(OfficePlan[],MATCH(INDEX(OfficeVariances[],ROW()-ROW(OfficeVariances[[#Headers],[5월]]),1),INDEX(OfficePlan[],,1),0),MATCH(OfficeVariances[[#Headers],[5월]],OfficePlan[#Headers],0))-INDEX(OfficeActual[],MATCH(INDEX(OfficeVariances[],ROW()-ROW(OfficeVariances[[#Headers],[5월]]),1),INDEX(OfficePlan[],,1),0),MATCH(OfficeVariances[[#Headers],[5월]],OfficeActual[#Headers],0)) -> ₩0.00 | H18: =INDEX(OfficePlan[],MATCH(INDEX(OfficeVariances[],ROW()-ROW(OfficeVariances[[#Headers],[6월]]),1),INDEX(OfficePlan[],,1),0),MATCH(OfficeVariances[[#Headers],[6월]],OfficePlan[#Headers],0))-INDEX(OfficeActual[],MATCH(INDEX(OfficeVariances[],ROW()-ROW(OfficeVariances[[#Headers],[6월]]),1),INDEX(OfficePlan[],,1),0),MATCH(OfficeVariances[[#Headers],[6월]],OfficeActual[#Headers],0)) -> ₩0.00 | I18: =INDEX(OfficePlan[],MATCH(INDEX(OfficeVariances[],ROW()-ROW(OfficeVariances[[#Headers],[7월]]),1),INDEX(OfficePlan[],,1),0),MATCH(OfficeVariances[[#Headers],[7월]],OfficePlan[#Headers],0))-INDEX(OfficeActual[],MATCH(INDEX(OfficeVariances[],ROW()-ROW(OfficeVariances[[#Headers],[7월]]),1),INDEX(OfficePlan[],,1),0),MATCH(OfficeVariances[[#Headers],[7월]],OfficeActual[#Headers],0)) -> ₩600.00 | J18: =INDEX(OfficePlan[],MATCH(INDEX(OfficeVariances[],ROW()-ROW(OfficeVariances[[#Headers],[8월]]),1),INDEX(OfficePlan[],,1),0),MATCH(OfficeVariances[[#Headers],[8월]],OfficePlan[#Headers],0))-INDEX(OfficeActual[],MATCH(INDEX(OfficeVariances[],ROW()-ROW(OfficeVariances[[#Headers],[8월]]),1),INDEX(OfficePlan[],,1),0),MATCH(OfficeVariances[[#Headers],[8월]],OfficeActual[#Headers],0)) -> ₩600.00 | K18: =INDEX(OfficePlan[],MATCH(INDEX(OfficeVariances[],ROW()-ROW(OfficeVariances[[#Headers],[9월]]),1),INDEX(OfficePlan[],,1),0),MATCH(OfficeVariances[[#Headers],[9월]],OfficePlan[#Headers],0))-INDEX(OfficeActual[],MATCH(INDEX(OfficeVariances[],ROW()-ROW(OfficeVariances[[#Headers],[9월]]),1),INDEX(OfficePlan[],,1),0),MATCH(OfficeVariances[[#Headers],[9월]],OfficeActual[#Headers],0)) -> ₩600.00 | L18: =INDEX(OfficePlan[],MATCH(INDEX(OfficeVariances[],ROW()-ROW(OfficeVariances[[#Headers],[10월]]),1),INDEX(OfficePlan[],,1),0),MATCH(OfficeVariances[[#Headers],[10월]],OfficePlan[#Headers],0))-INDEX(OfficeActual[],MATCH(INDEX(OfficeVariances[],ROW()-ROW(OfficeVariances[[#Headers],[10월]]),1),INDEX(OfficePlan[],,1),0),MATCH(OfficeVariances[[#Headers],[10월]],OfficeActual[#Headers],0)) -> ₩600.00 | M18: =INDEX(OfficePlan[],MATCH(INDEX(OfficeVariances[],ROW()-ROW(OfficeVariances[[#Headers],[11월]]),1),INDEX(OfficePlan[],,1),0),MATCH(OfficeVariances[[#Headers],[11월]],OfficePlan[#Headers],0))-INDEX(OfficeActual[],MATCH(INDEX(OfficeVariances[],ROW()-ROW(OfficeVariances[[#Headers],[11월]]),1),INDEX(OfficePlan[],,1),0),MATCH(OfficeVariances[[#Headers],[11월]],OfficeActual[#Headers],0)) -> ₩600.00 | N18: =INDEX(OfficePlan[],MATCH(INDEX(OfficeVariances[],ROW()-ROW(OfficeVariances[[#Headers],[12월]]),1),INDEX(OfficePlan[],,1),0),MATCH(OfficeVariances[[#Headers],[12월]],OfficePlan[#Headers],0))-INDEX(OfficeActual[],MATCH(INDEX(OfficeVariances[],ROW()-ROW(OfficeVariances[[#Headers],[12월]]),1),INDEX(OfficePlan[],,1),0),MATCH(OfficeVariances[[#Headers],[12월]],OfficeActual[#Headers],0)) -> ₩600.00 | O18: =SUM(OfficeVariances[[#This Row],[1월]:[12월]]) -> ₩3,600.00
B19: 소계 | C19: =SUBTOTAL(109,OfficeVariances[1월]) -> (₩17.00) | D19: =SUBTOTAL(109,OfficeVariances[2월]) -> ₩72.00 | E19: =SUBTOTAL(109,OfficeVariances[3월]) -> ₩78.00 | F19: =SUBTOTAL(109,OfficeVariances[4월]) -> (₩141.00) | G19: =SUBTOTAL(109,OfficeVariances[5월]) -> (₩38.00) | H19: =SUBTOTAL(109,OfficeVariances[6월]) -> ₩16.00 | I19: =SUBTOTAL(109,OfficeVariances[7월]) -> ₩11,470.00 | J19: =SUBTOTAL(109,OfficeVariances[8월]) -> ₩11,470.00 | K19: =SUBTOTAL(109,OfficeVariances[9월]) -> ₩11,470.00 | L19: =SUBTOTAL(109,OfficeVariances[10월]) -> ₩11,470.00 | M19: =SUBTOTAL(109,OfficeVariances[11월]) -> ₩11,770.00 | N19: =SUBTOTAL(109,OfficeVariances[12월]) -> ₩11,770.00 | O19: =SUBTOTAL(109,OfficeVariances[연도]) -> ₩69,390.00
A21: 오른쪽 셀에서 시작하는 마케팅 차이 표에 마케팅 비용 차이가 자동으로 계산됩니다. 다음 지침은 A30 셀에 있습니다. | B21: 마케팅 비용 | C21: 1월 | D21: 2월 | E21: 3월 | F21: 4월 | G21: 5월 | H21: 6월 | I21: 7월 | J21: 8월 | K21: 9월 | L21: 10월 | M21: 11월 | N21: 12월 | O21: 연도
B22: 웹 사이트 호스팅 | C22: =INDEX(MarketingPlan[],MATCH(INDEX(MarketingVariances[],ROW()-ROW(MarketingVariances[[#Headers],[1월]]),1),INDEX(MarketingPlan[],,1),0),MATCH(MarketingVariances[[#Headers],[1월]],MarketingPlan[#Headers],0))-INDEX(MarketingActual[],MATCH(INDEX(MarketingVariances[],ROW()-ROW(MarketingVariances[[#Headers],[1월]]),1),INDEX(MarketingPlan[],,1),0),MATCH(MarketingVariances[[#Headers],[1월]],MarketingActual[#Headers],0)) -> ₩0.00 | D22: =INDEX(MarketingPlan[],MATCH(INDEX(MarketingVariances[],ROW()-ROW(MarketingVariances[[#Headers],[2월]]),1),INDEX(MarketingPlan[],,1),0),MATCH(MarketingVariances[[#Headers],[2월]],MarketingPlan[#Headers],0))-INDEX(MarketingActual[],MATCH(INDEX(MarketingVariances[],ROW()-ROW(MarketingVariances[[#Headers],[2월]]),1),INDEX(MarketingPlan[],,1),0),MATCH(MarketingVariances[[#Headers],[2월]],MarketingActual[#Headers],0)) -> ₩0.00 | E22: =INDEX(MarketingPlan[],MATCH(INDEX(MarketingVariances[],ROW()-ROW(MarketingVariances[[#Headers],[3월]]),1),INDEX(MarketingPlan[],,1),0),MATCH(MarketingVariances[[#Headers],[3월]],MarketingPlan[#Headers],0))-INDEX(MarketingActual[],MATCH(INDEX(MarketingVariances[],ROW()-ROW(MarketingVariances[[#Headers],[3월]]),1),INDEX(MarketingPlan[],,1),0),MATCH(MarketingVariances[[#Headers],[3월]],MarketingActual[#Headers],0)) -> ₩0.00 | F22: =INDEX(MarketingPlan[],MATCH(INDEX(MarketingVariances[],ROW()-ROW(MarketingVariances[[#Headers],[4월]]),1),INDEX(MarketingPlan[],,1),0),MATCH(MarketingVariances[[#Headers],[4월]],MarketingPlan[#Headers],0))-INDEX(MarketingActual[],MATCH(INDEX(MarketingVariances[],ROW()-ROW(MarketingVariances[[#Headers],[4월]]),1),INDEX(MarketingPlan[],,1),0),MATCH(MarketingVariances[[#Headers],[4월]],MarketingActual[#Headers],0)) -> ₩0.00 | G22: =INDEX(MarketingPlan[],MATCH(INDEX(MarketingVariances[],ROW()-ROW(MarketingVariances[[#Headers],[5월]]),1),INDEX(MarketingPlan[],,1),0),MATCH(MarketingVariances[[#Headers],[5월]],MarketingPlan[#Headers],0))-INDEX(MarketingActual[],MATCH(INDEX(MarketingVariances[],ROW()-ROW(MarketingVariances[[#Headers],[5월]]),1),INDEX(MarketingPlan[],,1),0),MATCH(MarketingVariances[[#Headers],[5월]],MarketingActual[#Headers],0)) -> ₩0.00 | H22: =INDEX(MarketingPlan[],MATCH(INDEX(MarketingVariances[],ROW()-ROW(MarketingVariances[[#Headers],[6월]]),1),INDEX(MarketingPlan[],,1),0),MATCH(MarketingVariances[[#Headers],[6월]],MarketingPlan[#Headers],0))-INDEX(MarketingActual[],MATCH(INDEX(MarketingVariances[],ROW()-ROW(MarketingVariances[[#Headers],[6월]]),1),INDEX(MarketingPlan[],,1),0),MATCH(MarketingVariances[[#Headers],[6월]],MarketingActual[#Headers],0)) -> ₩0.00 | I22: =INDEX(MarketingPlan[],MATCH(INDEX(MarketingVariances[],ROW()-ROW(MarketingVariances[[#Headers],[7월]]),1),INDEX(MarketingPlan[],,1),0),MATCH(MarketingVariances[[#Headers],[7월]],MarketingPlan[#Headers],0))-INDEX(MarketingActual[],MATCH(INDEX(MarketingVariances[],ROW()-ROW(MarketingVariances[[#Headers],[7월]]),1),INDEX(MarketingPlan[],,1),0),MATCH(MarketingVariances[[#Headers],[7월]],MarketingActual[#Headers],0)) -> ₩500.00 | J22: =INDEX(MarketingPlan[],MATCH(INDEX(MarketingVariances[],ROW()-ROW(MarketingVariances[[#Headers],[8월]]),1),INDEX(MarketingPlan[],,1),0),MATCH(MarketingVariances[[#Headers],[8월]],MarketingPlan[#Headers],0))-INDEX(MarketingActual[],MATCH(INDEX(MarketingVariances[],ROW()-ROW(MarketingVariances[[#Headers],[8월]]),1),INDEX(MarketingPlan[],,1),0),MATCH(MarketingVariances[[#Headers],[8월]],MarketingActual[#Headers],0)) -> ₩500.00 | K22: =INDEX(MarketingPlan[],MATCH(INDEX(MarketingVariances[],ROW()-ROW(MarketingVariances[[#Headers],[9월]]),1),INDEX(MarketingPlan[],,1),0),MATCH(MarketingVariances[[#Headers],[9월]],MarketingPlan[#Headers],0))-INDEX(MarketingActual[],MATCH(INDEX(MarketingVariances[],ROW()-ROW(MarketingVariances[[#Headers],[9월]]),1),INDEX(MarketingPlan[],,1),0),MATCH(MarketingVariances[[#Headers],[9월]],MarketingActual[#Headers],0)) -> ₩500.00 | L22: =INDEX(MarketingPlan[],MATCH(INDEX(MarketingVariances[],ROW()-ROW(MarketingVariances[[#Headers],[10월]]),1),INDEX(MarketingPlan[],,1),0),MATCH(MarketingVariances[[#Headers],[10월]],MarketingPlan[#Headers],0))-INDEX(MarketingActual[],MATCH(INDEX(MarketingVariances[],ROW()-ROW(MarketingVariances[[#Headers],[10월]]),1),INDEX(MarketingPlan[],,1),0),MATCH(MarketingVariances[[#Headers],[10월]],MarketingActual[#Headers],0)) -> ₩500.00 | M22: =INDEX(MarketingPlan[],MATCH(INDEX(MarketingVariances[],ROW()-ROW(MarketingVariances[[#Headers],[11월]]),1),INDEX(MarketingPlan[],,1),0),MATCH(MarketingVariances[[#Headers],[11월]],MarketingPlan[#Headers],0))-INDEX(MarketingActual[],MATCH(INDEX(MarketingVariances[],ROW()-ROW(MarketingVariances[[#Headers],[11월]]),1),INDEX(MarketingPlan[],,1),0),MATCH(MarketingVariances[[#Headers],[11월]],MarketingActual[#Headers],0)) -> ₩500.00 | N22: =INDEX(MarketingPlan[],MATCH(INDEX(MarketingVariances[],ROW()-ROW(MarketingVariances[[#Headers],[12월]]),1),INDEX(MarketingPlan[],,1),0),MATCH(MarketingVariances[[#Headers],[12월]],MarketingPlan[#Headers],0))-INDEX(MarketingActual[],MATCH(INDEX(MarketingVariances[],ROW()-ROW(MarketingVariances[[#Headers],[12월]]),1),INDEX(MarketingPlan[],,1),0),MATCH(MarketingVariances[[#Headers],[12월]],MarketingActual[#Headers],0)) -> ₩500.00 | O22: =SUM(MarketingVariances[[#This Row],[1월]:[12월]]) -> ₩3,000.00
B23: 웹 사이트 업데이트 | C23: =INDEX(MarketingPlan[],MATCH(INDEX(MarketingVariances[],ROW()-ROW(MarketingVariances[[#Headers],[1월]]),1),INDEX(MarketingPlan[],,1),0),MATCH(MarketingVariances[[#Headers],[1월]],MarketingPlan[#Headers],0))-INDEX(MarketingActual[],MATCH(INDEX(MarketingVariances[],ROW()-ROW(MarketingVariances[[#Headers],[1월]]),1),INDEX(MarketingPlan[],,1),0),MATCH(MarketingVariances[[#Headers],[1월]],MarketingActual[#Headers],0)) -> ₩0.00 | D23: =INDEX(MarketingPlan[],MATCH(INDEX(MarketingVariances[],ROW()-ROW(MarketingVariances[[#Headers],[2월]]),1),INDEX(MarketingPlan[],,1),0),MATCH(MarketingVariances[[#Headers],[2월]],MarketingPlan[#Headers],0))-INDEX(MarketingActual[],MATCH(INDEX(MarketingVariances[],ROW()-ROW(MarketingVariances[[#Headers],[2월]]),1),INDEX(MarketingPlan[],,1),0),MATCH(MarketingVariances[[#Headers],[2월]],MarketingActual[#Headers],0)) -> ₩0.00 | E23: =INDEX(MarketingPlan[],MATCH(INDEX(MarketingVariances[],ROW()-ROW(MarketingVariances[[#Headers],[3월]]),1),INDEX(MarketingPlan[],,1),0),MATCH(MarketingVariances[[#Headers],[3월]],MarketingPlan[#Headers],0))-INDEX(MarketingActual[],MATCH(INDEX(MarketingVariances[],ROW()-ROW(MarketingVariances[[#Headers],[3월]]),1),INDEX(MarketingPlan[],,1),0),MATCH(MarketingVariances[[#Headers],[3월]],MarketingActual[#Headers],0)) -> ₩0.00 | F23: =INDEX(MarketingPlan[],MATCH(INDEX(MarketingVariances[],ROW()-ROW(MarketingVariances[[#Headers],[4월]]),1),INDEX(MarketingPlan[],,1),0),MATCH(MarketingVariances[[#Headers],[4월]],MarketingPlan[#Headers],0))-INDEX(MarketingActual[],MATCH(INDEX(MarketingVariances[],ROW()-ROW(MarketingVariances[[#Headers],[4월]]),1),INDEX(MarketingPlan[],,1),0),MATCH(MarketingVariances[[#Headers],[4월]],MarketingActual[#Headers],0)) -> ₩0.00 | G23: =INDEX(MarketingPlan[],MATCH(INDEX(MarketingVariances[],ROW()-ROW(MarketingVariances[[#Headers],[5월]]),1),INDEX(MarketingPlan[],,1),0),MATCH(MarketingVariances[[#Headers],[5월]],MarketingPlan[#Headers],0))-INDEX(MarketingActual[],MATCH(INDEX(MarketingVariances[],ROW()-ROW(MarketingVariances[[#Headers],[5월]]),1),INDEX(MarketingPlan[],,1),0),MATCH(MarketingVariances[[#Headers],[5월]],MarketingActual[#Headers],0)) -> ₩0.00 | H23: =INDEX(MarketingPlan[],MATCH(INDEX(MarketingVariances[],ROW()-ROW(MarketingVariances[[#Headers],[6월]]),1),INDEX(MarketingPlan[],,1),0),MATCH(MarketingVariances[[#Headers],[6월]],MarketingPlan[#Headers],0))-INDEX(MarketingActual[],MATCH(INDEX(MarketingVariances[],ROW()-ROW(MarketingVariances[[#Headers],[6월]]),1),INDEX(MarketingPlan[],,1),0),MATCH(MarketingVariances[[#Headers],[6월]],MarketingActual[#Headers],0)) -> (₩500.00) | I23: =INDEX(MarketingPlan[],MATCH(INDEX(MarketingVariances[],ROW()-ROW(MarketingVariances[[#Headers],[7월]]),1),INDEX(MarketingPlan[],,1),0),MATCH(MarketingVariances[[#Headers],[7월]],MarketingPlan[#Headers],0))-INDEX(MarketingActual[],MATCH(INDEX(MarketingVariances[],ROW()-ROW(MarketingVariances[[#Headers],[7월]]),1),INDEX(MarketingPlan[],,1),0),MATCH(MarketingVariances[[#Headers],[7월]],MarketingActual[#Headers],0)) -> ₩200.00 | J23: =INDEX(MarketingPlan[],MATCH(INDEX(MarketingVariances[],ROW()-ROW(MarketingVariances[[#Headers],[8월]]),1),INDEX(MarketingPlan[],,1),0),MATCH(MarketingVariances[[#Headers],[8월]],MarketingPlan[#Headers],0))-INDEX(MarketingActual[],MATCH(INDEX(MarketingVariances[],ROW()-ROW(MarketingVariances[[#Headers],[8월]]),1),INDEX(MarketingPlan[],,1),0),MATCH(MarketingVariances[[#Headers],[8월]],MarketingActual[#Headers],0)) -> ₩200.00 | K23: =INDEX(MarketingPlan[],MATCH(INDEX(MarketingVariances[],ROW()-ROW(MarketingVariances[[#Headers],[9월]]),1),INDEX(MarketingPlan[],,1),0),MATCH(MarketingVariances[[#Headers],[9월]],MarketingPlan[#Headers],0))-INDEX(MarketingActual[],MATCH(INDEX(MarketingVariances[],ROW()-ROW(MarketingVariances[[#Headers],[9월]]),1),INDEX(MarketingPlan[],,1),0),MATCH(MarketingVariances[[#Headers],[9월]],MarketingActual[#Headers],0)) -> ₩200.00 | L23: =INDEX(MarketingPlan[],MATCH(INDEX(MarketingVariances[],ROW()-ROW(MarketingVariances[[#Headers],[10월]]),1),INDEX(MarketingPlan[],,1),0),MATCH(MarketingVariances[[#Headers],[10월]],MarketingPlan[#Headers],0))-INDEX(MarketingActual[],MATCH(INDEX(MarketingVariances[],ROW()-ROW(MarketingVariances[[#Headers],[10월]]),1),INDEX(MarketingPlan[],,1),0),MATCH(MarketingVariances[[#Headers],[10월]],MarketingActual[#Headers],0)) -> ₩200.00 | M23: =INDEX(MarketingPlan[],MATCH(INDEX(MarketingVariances[],ROW()-ROW(MarketingVariances[[#Headers],[11월]]),1),INDEX(MarketingPlan[],,1),0),MATCH(MarketingVariances[[#Headers],[11월]],MarketingPlan[#Headers],0))-INDEX(MarketingActual[],MATCH(INDEX(MarketingVariances[],ROW()-ROW(MarketingVariances[[#Headers],[11월]]),1),INDEX(MarketingPlan[],,1),0),MATCH(MarketingVariances[[#Headers],[11월]],MarketingActual[#Headers],0)) -> ₩200.00 | N23: =INDEX(MarketingPlan[],MATCH(INDEX(MarketingVariances[],ROW()-ROW(MarketingVariances[[#Headers],[12월]]),1),INDEX(MarketingPlan[],,1),0),MATCH(MarketingVariances[[#Headers],[12월]],MarketingPlan[#Headers],0))-INDEX(MarketingActual[],MATCH(INDEX(MarketingVariances[],ROW()-ROW(MarketingVariances[[#Headers],[12월]]),1),INDEX(MarketingPlan[],,1),0),MATCH(MarketingVariances[[#Headers],[12월]],MarketingActual[#Headers],0)) -> ₩1,000.00 | O23: =SUM(MarketingVariances[[#This Row],[1월]:[12월]]) -> ₩1,500.00
B24: 자료 준비 | C24: =INDEX(MarketingPlan[],MATCH(INDEX(MarketingVariances[],ROW()-ROW(MarketingVariances[[#Headers],[1월]]),1),INDEX(MarketingPlan[],,1),0),MATCH(MarketingVariances[[#Headers],[1월]],MarketingPlan[#Headers],0))-INDEX(MarketingActual[],MATCH(INDEX(MarketingVariances[],ROW()-ROW(MarketingVariances[[#Headers],[1월]]),1),INDEX(MarketingPlan[],,1),0),MATCH(MarketingVariances[[#Headers],[1월]],MarketingActual[#Headers],0)) -> ₩200.00 | D24: =INDEX(MarketingPlan[],MATCH(INDEX(MarketingVariances[],ROW()-ROW(MarketingVariances[[#Headers],[2월]]),1),INDEX(MarketingPlan[],,1),0),MATCH(MarketingVariances[[#Headers],[2월]],MarketingPlan[#Headers],0))-INDEX(MarketingActual[],MATCH(INDEX(MarketingVariances[],ROW()-ROW(MarketingVariances[[#Headers],[2월]]),1),INDEX(MarketingPlan[],,1),0),MATCH(MarketingVariances[[#Headers],[2월]],MarketingActual[#Headers],0)) -> ₩0.00 | E24: =INDEX(MarketingPlan[],MATCH(INDEX(MarketingVariances[],ROW()-ROW(MarketingVariances[[#Headers],[3월]]),1),INDEX(MarketingPlan[],,1),0),MATCH(MarketingVariances[[#Headers],[3월]],MarketingPlan[#Headers],0))-INDEX(MarketingActual[],MATCH(INDEX(MarketingVariances[],ROW()-ROW(MarketingVariances[[#Headers],[3월]]),1),INDEX(MarketingPlan[],,1),0),MATCH(MarketingVariances[[#Headers],[3월]],MarketingActual[#Headers],0)) -> ₩0.00 | F24: =INDEX(MarketingPlan[],MATCH(INDEX(MarketingVariances[],ROW()-ROW(MarketingVariances[[#Headers],[4월]]),1),INDEX(MarketingPlan[],,1),0),MATCH(MarketingVariances[[#Headers],[4월]],MarketingPlan[#Headers],0))-INDEX(MarketingActual[],MATCH(INDEX(MarketingVariances[],ROW()-ROW(MarketingVariances[[#Headers],[4월]]),1),INDEX(MarketingPlan[],,1),0),MATCH(MarketingVariances[[#Headers],[4월]],MarketingActual[#Headers],0)) -> (₩500.00) | G24: =INDEX(MarketingPlan[],MATCH(INDEX(MarketingVariances[],ROW()-ROW(MarketingVariances[[#Headers],[5월]]),1),INDEX(MarketingPlan[],,1),0),MATCH(MarketingVariances[[#Headers],[5월]],MarketingPlan[#Headers],0))-INDEX(MarketingActual[],MATCH(INDEX(MarketingVariances[],ROW()-ROW(MarketingVariances[[#Headers],[5월]]),1),INDEX(MarketingPlan[],,1),0),MATCH(MarketingVariances[[#Headers],[5월]],MarketingActual[#Headers],0)) -> ₩0.00 | H24: =INDEX(MarketingPlan[],MATCH(INDEX(MarketingVariances[],ROW()-ROW(MarketingVariances[[#Headers],[6월]]),1),INDEX(MarketingPlan[],,1),0),MATCH(MarketingVariances[[#Headers],[6월]],MarketingPlan[#Headers],0))-INDEX(MarketingActual[],MATCH(INDEX(MarketingVariances[],ROW()-ROW(MarketingVariances[[#Headers],[6월]]),1),INDEX(MarketingPlan[],,1),0),MATCH(MarketingVariances[[#Headers],[6월]],MarketingActual[#Headers],0)) -> ₩0.00 | I24: =INDEX(MarketingPlan[],MATCH(INDEX(MarketingVariances[],ROW()-ROW(MarketingVariances[[#Headers],[7월]]),1),INDEX(MarketingPlan[],,1),0),MATCH(MarketingVariances[[#Headers],[7월]],MarketingPlan[#Headers],0))-INDEX(MarketingActual[],MATCH(INDEX(MarketingVariances[],ROW()-ROW(MarketingVariances[[#Headers],[7월]]),1),INDEX(MarketingPlan[],,1),0),MATCH(MarketingVariances[[#Headers],[7월]],MarketingActual[#Headers],0)) -> ₩5,000.00 | J24: =INDEX(MarketingPlan[],MATCH(INDEX(MarketingVariances[],ROW()-ROW(MarketingVariances[[#Headers],[8월]]),1),INDEX(MarketingPlan[],,1),0),MATCH(MarketingVariances[[#Headers],[8월]],MarketingPlan[#Headers],0))-INDEX(MarketingActual[],MATCH(INDEX(MarketingVariances[],ROW()-ROW(MarketingVariances[[#Headers],[8월]]),1),INDEX(MarketingPlan[],,1),0),MATCH(MarketingVariances[[#Headers],[8월]],MarketingActual[#Headers],0)) -> ₩0.00 | K24: =INDEX(MarketingPlan[],MATCH(INDEX(MarketingVariances[],ROW()-ROW(MarketingVariances[[#Headers],[9월]]),1),INDEX(MarketingPlan[],,1),0),MATCH(MarketingVariances[[#Headers],[9월]],MarketingPlan[#Headers],0))-INDEX(MarketingActual[],MATCH(INDEX(MarketingVariances[],ROW()-ROW(MarketingVariances[[#Headers],[9월]]),1),INDEX(MarketingPlan[],,1),0),MATCH(MarketingVariances[[#Headers],[9월]],MarketingActual[#Headers],0)) -> ₩0.00 | L24: =INDEX(MarketingPlan[],MATCH(INDEX(MarketingVariances[],ROW()-ROW(MarketingVariances[[#Headers],[10월]]),1),INDEX(MarketingPlan[],,1),0),MATCH(MarketingVariances[[#Headers],[10월]],MarketingPlan[#Headers],0))-INDEX(MarketingActual[],MATCH(INDEX(MarketingVariances[],ROW()-ROW(MarketingVariances[[#Headers],[10월]]),1),INDEX(MarketingPlan[],,1),0),MATCH(MarketingVariances[[#Headers],[10월]],MarketingActual[#Headers],0)) -> ₩5,000.00 | M24: =INDEX(MarketingPlan[],MATCH(INDEX(MarketingVariances[],ROW()-ROW(MarketingVariances[[#Headers],[11월]]),1),INDEX(MarketingPlan[],,1),0),MATCH(MarketingVariances[[#Headers],[11월]],MarketingPlan[#Headers],0))-INDEX(MarketingActual[],MATCH(INDEX(MarketingVariances[],ROW()-ROW(MarketingVariances[[#Headers],[11월]]),1),INDEX(MarketingPlan[],,1),0),MATCH(MarketingVariances[[#Headers],[11월]],MarketingActual[#Headers],0)) -> ₩0.00 | N24: =INDEX(MarketingPlan[],MATCH(INDEX(MarketingVariances[],ROW()-ROW(MarketingVariances[[#Headers],[12월]]),1),INDEX(MarketingPlan[],,1),0),MATCH(MarketingVariances[[#Headers],[12월]],MarketingPlan[#Headers],0))-INDEX(MarketingActual[],MATCH(INDEX(MarketingVariances[],ROW()-ROW(MarketingVariances[[#Headers],[12월]]),1),INDEX(MarketingPlan[],,1),0),MATCH(MarketingVariances[[#Headers],[12월]],MarketingActual[#Headers],0)) -> ₩0.00 | O24: =SUM(MarketingVariances[[#This Row],[1월]:[12월]]) -> ₩9,700.00
B25: 자료 인쇄 | C25: =INDEX(MarketingPlan[],MATCH(INDEX(MarketingVariances[],ROW()-ROW(MarketingVariances[[#Headers],[1월]]),1),INDEX(MarketingPlan[],,1),0),MATCH(MarketingVariances[[#Headers],[1월]],MarketingPlan[#Headers],0))-INDEX(MarketingActual[],MATCH(INDEX(MarketingVariances[],ROW()-ROW(MarketingVariances[[#Headers],[1월]]),1),INDEX(MarketingPlan[],,1),0),MATCH(MarketingVariances[[#Headers],[1월]],MarketingActual[#Headers],0)) -> ₩100.00 | D25: =INDEX(MarketingPlan[],MATCH(INDEX(MarketingVariances[],ROW()-ROW(MarketingVariances[[#Headers],[2월]]),1),INDEX(MarketingPlan[],,1),0),MATCH(MarketingVariances[[#Headers],[2월]],MarketingPlan[#Headers],0))-INDEX(MarketingActual[],MATCH(INDEX(MarketingVariances[],ROW()-ROW(MarketingVariances[[#Headers],[2월]]),1),INDEX(MarketingPlan[],,1),0),MATCH(MarketingVariances[[#Headers],[2월]],MarketingActual[#Headers],0)) -> (₩300.00) | E25: =INDEX(MarketingPlan[],MATCH(INDEX(MarketingVariances[],ROW()-ROW(MarketingVariances[[#Headers],[3월]]),1),INDEX(MarketingPlan[],,1),0),MATCH(MarketingVariances[[#Headers],[3월]],MarketingPlan[#Headers],0))-INDEX(MarketingActual[],MATCH(INDEX(MarketingVariances[],ROW()-ROW(MarketingVariances[[#Headers],[3월]]),1),INDEX(MarketingPlan[],,1),0),MATCH(MarketingVariances[[#Headers],[3월]],MarketingActual[#Headers],0)) -> ₩100.00 | F25: =INDEX(MarketingPlan[],MATCH(INDEX(MarketingVariances[],ROW()-ROW(MarketingVariances[[#Headers],[4월]]),1),INDEX(MarketingPlan[],,1),0),MATCH(MarketingVariances[[#Headers],[4월]],MarketingPlan[#Headers],0))-INDEX(MarketingActual[],MATCH(INDEX(MarketingVariances[],ROW()-ROW(MarketingVariances[[#Headers],[4월]]),1),INDEX(MarketingPlan[],,1),0),MATCH(MarketingVariances[[#Headers],[4월]],MarketingActual[#Headers],0)) -> ₩100.00 | G25: =INDEX(MarketingPlan[],MATCH(INDEX(MarketingVariances[],ROW()-ROW(MarketingVariances[[#Headers],[5월]]),1),INDEX(MarketingPlan[],,1),0),MATCH(MarketingVariances[[#Headers],[5월]],MarketingPlan[#Headers],0))-INDEX(MarketingActual[],MATCH(INDEX(MarketingVariances[],ROW()-ROW(MarketingVariances[[#Headers],[5월]]),1),INDEX(MarketingPlan[],,1),0),MATCH(MarketingVariances[[#Headers],[5월]],MarketingActual[#Headers],0)) -> (₩400.00) | H25: =INDEX(MarketingPlan[],MATCH(INDEX(MarketingVariances[],ROW()-ROW(MarketingVariances[[#Headers],[6월]]),1),INDEX(MarketingPlan[],,1),0),MATCH(MarketingVariances[[#Headers],[6월]],MarketingPlan[#Headers],0))-INDEX(MarketingActual[],MATCH(INDEX(MarketingVariances[],ROW()-ROW(MarketingVariances[[#Headers],[6월]]),1),INDEX(MarketingPlan[],,1),0),MATCH(MarketingVariances[[#Headers],[6월]],MarketingActual[#Headers],0)) -> ₩20.00 | I25: =INDEX(MarketingPlan[],MATCH(INDEX(MarketingVariances[],ROW()-ROW(MarketingVariances[[#Headers],[7월]]),1),INDEX(MarketingPlan[],,1),0),MATCH(MarketingVariances[[#Headers],[7월]],MarketingPlan[#Headers],0))-INDEX(MarketingActual[],MATCH(INDEX(MarketingVariances[],ROW()-ROW(MarketingVariances[[#Headers],[7월]]),1),INDEX(MarketingPlan[],,1),0),MATCH(MarketingVariances[[#Headers],[7월]],MarketingActual[#Headers],0)) -> ₩200.00 | J25: =INDEX(MarketingPlan[],MATCH(INDEX(MarketingVariances[],ROW()-ROW(MarketingVariances[[#Headers],[8월]]),1),INDEX(MarketingPlan[],,1),0),MATCH(MarketingVariances[[#Headers],[8월]],MarketingPlan[#Headers],0))-INDEX(MarketingActual[],MATCH(INDEX(MarketingVariances[],ROW()-ROW(MarketingVariances[[#Headers],[8월]]),1),INDEX(MarketingPlan[],,1),0),MATCH(MarketingVariances[[#Headers],[8월]],MarketingActual[#Headers],0)) -> ₩200.00 | K25: =INDEX(MarketingPlan[],MATCH(INDEX(MarketingVariances[],ROW()-ROW(MarketingVariances[[#Headers],[9월]]),1),INDEX(MarketingPlan[],,1),0),MATCH(MarketingVariances[[#Headers],[9월]],MarketingPlan[#Headers],0))-INDEX(MarketingActual[],MATCH(INDEX(MarketingVariances[],ROW()-ROW(MarketingVariances[[#Headers],[9월]]),1),INDEX(MarketingPlan[],,1),0),MATCH(MarketingVariances[[#Headers],[9월]],MarketingActual[#Headers],0)) -> ₩200.00 | L25: =INDEX(MarketingPlan[],MATCH(INDEX(MarketingVariances[],ROW()-ROW(MarketingVariances[[#Headers],[10월]]),1),INDEX(MarketingPlan[],,1),0),MATCH(MarketingVariances[[#Headers],[10월]],MarketingPlan[#Headers],0))-INDEX(MarketingActual[],MATCH(INDEX(MarketingVariances[],ROW()-ROW(MarketingVariances[[#Headers],[10월]]),1),INDEX(MarketingPlan[],,1),0),MATCH(MarketingVariances[[#Headers],[10월]],MarketingActual[#Headers],0)) -> ₩200.00 | M25: =INDEX(MarketingPlan[],MATCH(INDEX(MarketingVariances[],ROW()-ROW(MarketingVariances[[#Headers],[11월]]),1),INDEX(MarketingPlan[],,1),0),MATCH(MarketingVariances[[#Headers],[11월]],MarketingPlan[#Headers],0))-INDEX(MarketingActual[],MATCH(INDEX(MarketingVariances[],ROW()-ROW(MarketingVariances[[#Headers],[11월]]),1),INDEX(MarketingPlan[],,1),0),MATCH(MarketingVariances[[#Headers],[11월]],MarketingActual[#Headers],0)) -> ₩200.00 | N25: =INDEX(MarketingPlan[],MATCH(INDEX(MarketingVariances[],ROW()-ROW(MarketingVariances[[#Headers],[12월]]),1),INDEX(MarketingPlan[],,1),0),MATCH(MarketingVariances[[#Headers],[12월]],MarketingPlan[#Headers],0))-INDEX(MarketingActual[],MATCH(INDEX(MarketingVariances[],ROW()-ROW(MarketingVariances[[#Headers],[12월]]),1),INDEX(MarketingPlan[],,1),0),MATCH(MarketingVariances[[#Headers],[12월]],MarketingActual[#Headers],0)) -> ₩200.00 | O25: =SUM(MarketingVariances[[#This Row],[1월]:[12월]]) -> ₩820.00
B26: 마케팅 행사 | C26: =INDEX(MarketingPlan[],MATCH(INDEX(MarketingVariances[],ROW()-ROW(MarketingVariances[[#Headers],[1월]]),1),INDEX(MarketingPlan[],,1),0),MATCH(MarketingVariances[[#Headers],[1월]],MarketingPlan[#Headers],0))-INDEX(MarketingActual[],MATCH(INDEX(MarketingVariances[],ROW()-ROW(MarketingVariances[[#Headers],[1월]]),1),INDEX(MarketingPlan[],,1),0),MATCH(MarketingVariances[[#Headers],[1월]],MarketingActual[#Headers],0)) -> ₩200.00 | D26: =INDEX(MarketingPlan[],MATCH(INDEX(MarketingVariances[],ROW()-ROW(MarketingVariances[[#Headers],[2월]]),1),INDEX(MarketingPlan[],,1),0),MATCH(MarketingVariances[[#Headers],[2월]],MarketingPlan[#Headers],0))-INDEX(MarketingActual[],MATCH(INDEX(MarketingVariances[],ROW()-ROW(MarketingVariances[[#Headers],[2월]]),1),INDEX(MarketingPlan[],,1),0),MATCH(MarketingVariances[[#Headers],[2월]],MarketingActual[#Headers],0)) -> (₩200.00) | E26: =INDEX(MarketingPlan[],MATCH(INDEX(MarketingVariances[],ROW()-ROW(MarketingVariances[[#Headers],[3월]]),1),INDEX(MarketingPlan[],,1),0),MATCH(MarketingVariances[[#Headers],[3월]],MarketingPlan[#Headers],0))-INDEX(MarketingActual[],MATCH(INDEX(MarketingVariances[],ROW()-ROW(MarketingVariances[[#Headers],[3월]]),1),INDEX(MarketingPlan[],,1),0),MATCH(MarketingVariances[[#Headers],[3월]],MarketingActual[#Headers],0)) -> (₩200.00) | F26: =INDEX(MarketingPlan[],MATCH(INDEX(MarketingVariances[],ROW()-ROW(MarketingVariances[[#Headers],[4월]]),1),INDEX(MarketingPlan[],,1),0),MATCH(MarketingVariances[[#Headers],[4월]],MarketingPlan[#Headers],0))-INDEX(MarketingActual[],MATCH(INDEX(MarketingVariances[],ROW()-ROW(MarketingVariances[[#Headers],[4월]]),1),INDEX(MarketingPlan[],,1),0),MATCH(MarketingVariances[[#Headers],[4월]],MarketingActual[#Headers],0)) -> ₩300.00 | G26: =INDEX(MarketingPlan[],MATCH(INDEX(MarketingVariances[],ROW()-ROW(MarketingVariances[[#Headers],[5월]]),1),INDEX(MarketingPlan[],,1),0),MATCH(MarketingVariances[[#Headers],[5월]],MarketingPlan[#Headers],0))-INDEX(MarketingActual[],MATCH(INDEX(MarketingVariances[],ROW()-ROW(MarketingVariances[[#Headers],[5월]]),1),INDEX(MarketingPlan[],,1),0),MATCH(MarketingVariances[[#Headers],[5월]],MarketingActual[#Headers],0)) -> ₩500.00 | H26: =INDEX(MarketingPlan[],MATCH(INDEX(MarketingVariances[],ROW()-ROW(MarketingVariances[[#Headers],[6월]]),1),INDEX(MarketingPlan[],,1),0),MATCH(MarketingVariances[[#Headers],[6월]],MarketingPlan[#Headers],0))-INDEX(MarketingActual[],MATCH(INDEX(MarketingVariances[],ROW()-ROW(MarketingVariances[[#Headers],[6월]]),1),INDEX(MarketingPlan[],,1),0),MATCH(MarketingVariances[[#Headers],[6월]],MarketingActual[#Headers],0)) -> (₩300.00) | I26: =INDEX(MarketingPlan[],MATCH(INDEX(MarketingVariances[],ROW()-ROW(MarketingVariances[[#Headers],[7월]]),1),INDEX(MarketingPlan[],,1),0),MATCH(MarketingVariances[[#Headers],[7월]],MarketingPlan[#Headers],0))-INDEX(MarketingActual[],MATCH(INDEX(MarketingVariances[],ROW()-ROW(MarketingVariances[[#Headers],[7월]]),1),INDEX(MarketingPlan[],,1),0),MATCH(MarketingVariances[[#Headers],[7월]],MarketingActual[#Headers],0)) -> ₩2,000.00 | J26: =INDEX(MarketingPlan[],MATCH(INDEX(MarketingVariances[],ROW()-ROW(MarketingVariances[[#Headers],[8월]]),1),INDEX(MarketingPlan[],,1),0),MATCH(MarketingVariances[[#Headers],[8월]],MarketingPlan[#Headers],0))-INDEX(MarketingActual[],MATCH(INDEX(MarketingVariances[],ROW()-ROW(MarketingVariances[[#Headers],[8월]]),1),INDEX(MarketingPlan[],,1),0),MATCH(MarketingVariances[[#Headers],[8월]],MarketingActual[#Headers],0)) -> ₩5,000.00 | K26: =INDEX(MarketingPlan[],MATCH(INDEX(MarketingVariances[],ROW()-ROW(MarketingVariances[[#Headers],[9월]]),1),INDEX(MarketingPlan[],,1),0),MATCH(MarketingVariances[[#Headers],[9월]],MarketingPlan[#Headers],0))-INDEX(MarketingActual[],MATCH(INDEX(MarketingVariances[],ROW()-ROW(MarketingVariances[[#Headers],[9월]]),1),INDEX(MarketingPlan[],,1),0),MATCH(MarketingVariances[[#Headers],[9월]],MarketingActual[#Headers],0)) -> ₩2,000.00 | L26: =INDEX(MarketingPlan[],MATCH(INDEX(MarketingVariances[],ROW()-ROW(MarketingVariances[[#Headers],[10월]]),1),INDEX(MarketingPlan[],,1),0),MATCH(MarketingVariances[[#Headers],[10월]],MarketingPlan[#Headers],0))-INDEX(MarketingActual[],MATCH(INDEX(MarketingVariances[],ROW()-ROW(MarketingVariances[[#Headers],[10월]]),1),INDEX(MarketingPlan[],,1),0),MATCH(MarketingVariances[[#Headers],[10월]],MarketingActual[#Headers],0)) -> ₩2,000.00 | M26: =INDEX(MarketingPlan[],MATCH(INDEX(MarketingVariances[],ROW()-ROW(MarketingVariances[[#Headers],[11월]]),1),INDEX(MarketingPlan[],,1),0),MATCH(MarketingVariances[[#Headers],[11월]],MarketingPlan[#Headers],0))-INDEX(MarketingActual[],MATCH(INDEX(MarketingVariances[],ROW()-ROW(MarketingVariances[[#Headers],[11월]]),1),INDEX(MarketingPlan[],,1),0),MATCH(MarketingVariances[[#Headers],[11월]],MarketingActual[#Headers],0)) -> ₩2,000.00 | N26: =INDEX(MarketingPlan[],MATCH(INDEX(MarketingVariances[],ROW()-ROW(MarketingVariances[[#Headers],[12월]]),1),INDEX(MarketingPlan[],,1),0),MATCH(MarketingVariances[[#Headers],[12월]],MarketingPlan[#Headers],0))-INDEX(MarketingActual[],MATCH(INDEX(MarketingVariances[],ROW()-ROW(MarketingVariances[[#Headers],[12월]]),1),INDEX(MarketingPlan[],,1),0),MATCH(MarketingVariances[[#Headers],[12월]],MarketingActual[#Headers],0)) -> ₩5,000.00 | O26: =SUM(MarketingVariances[[#This Row],[1월]:[12월]]) -> ₩18,300.00
B27: 기타 비용 | C27: =INDEX(MarketingPlan[],MATCH(INDEX(MarketingVariances[],ROW()-ROW(MarketingVariances[[#Headers],[1월]]),1),INDEX(MarketingPlan[],,1),0),MATCH(MarketingVariances[[#Headers],[1월]],MarketingPlan[#Headers],0))-INDEX(MarketingActual[],MATCH(INDEX(MarketingVariances[],ROW()-ROW(MarketingVariances[[#Headers],[1월]]),1),INDEX(MarketingPlan[],,1),0),MATCH(MarketingVariances[[#Headers],[1월]],MarketingActual[#Headers],0)) -> ₩55.00 | D27: =INDEX(MarketingPlan[],MATCH(INDEX(MarketingVariances[],ROW()-ROW(MarketingVariances[[#Headers],[2월]]),1),INDEX(MarketingPlan[],,1),0),MATCH(MarketingVariances[[#Headers],[2월]],MarketingPlan[#Headers],0))-INDEX(MarketingActual[],MATCH(INDEX(MarketingVariances[],ROW()-ROW(MarketingVariances[[#Headers],[2월]]),1),INDEX(MarketingPlan[],,1),0),MATCH(MarketingVariances[[#Headers],[2월]],MarketingActual[#Headers],0)) -> ₩44.00 | E27: =INDEX(MarketingPlan[],MATCH(INDEX(MarketingVariances[],ROW()-ROW(MarketingVariances[[#Headers],[3월]]),1),INDEX(MarketingPlan[],,1),0),MATCH(MarketingVariances[[#Headers],[3월]],MarketingPlan[#Headers],0))-INDEX(MarketingActual[],MATCH(INDEX(MarketingVariances[],ROW()-ROW(MarketingVariances[[#Headers],[3월]]),1),INDEX(MarketingPlan[],,1),0),MATCH(MarketingVariances[[#Headers],[3월]],MarketingActual[#Headers],0)) -> ₩77.00 | F27: =INDEX(MarketingPlan[],MATCH(INDEX(MarketingVariances[],ROW()-ROW(MarketingVariances[[#Headers],[4월]]),1),INDEX(MarketingPlan[],,1),0),MATCH(MarketingVariances[[#Headers],[4월]],MarketingPlan[#Headers],0))-INDEX(MarketingActual[],MATCH(INDEX(MarketingVariances[],ROW()-ROW(MarketingVariances[[#Headers],[4월]]),1),INDEX(MarketingPlan[],,1),0),MATCH(MarketingVariances[[#Headers],[4월]],MarketingActual[#Headers],0)) -> (₩23.00) | G27: =INDEX(MarketingPlan[],MATCH(INDEX(MarketingVariances[],ROW()-ROW(MarketingVariances[[#Headers],[5월]]),1),INDEX(MarketingPlan[],,1),0),MATCH(MarketingVariances[[#Headers],[5월]],MarketingPlan[#Headers],0))-INDEX(MarketingActual[],MATCH(INDEX(MarketingVariances[],ROW()-ROW(MarketingVariances[[#Headers],[5월]]),1),INDEX(MarketingPlan[],,1),0),MATCH(MarketingVariances[[#Headers],[5월]],MarketingActual[#Headers],0)) -> ₩13.00 | H27: =INDEX(MarketingPlan[],MATCH(INDEX(MarketingVariances[],ROW()-ROW(MarketingVariances[[#Headers],[6월]]),1),INDEX(MarketingPlan[],,1),0),MATCH(MarketingVariances[[#Headers],[6월]],MarketingPlan[#Headers],0))-INDEX(MarketingActual[],MATCH(INDEX(MarketingVariances[],ROW()-ROW(MarketingVariances[[#Headers],[6월]]),1),INDEX(MarketingPlan[],,1),0),MATCH(MarketingVariances[[#Headers],[6월]],MarketingActual[#Headers],0)) -> (₩45.00) | I27: =INDEX(MarketingPlan[],MATCH(INDEX(MarketingVariances[],ROW()-ROW(MarketingVariances[[#Headers],[7월]]),1),INDEX(MarketingPlan[],,1),0),MATCH(MarketingVariances[[#Headers],[7월]],MarketingPlan[#Headers],0))-INDEX(MarketingActual[],MATCH(INDEX(MarketingVariances[],ROW()-ROW(MarketingVariances[[#Headers],[7월]]),1),INDEX(MarketingPlan[],,1),0),MATCH(MarketingVariances[[#Headers],[7월]],MarketingActual[#Headers],0)) -> ₩200.00 | J27: =INDEX(MarketingPlan[],MATCH(INDEX(MarketingVariances[],ROW()-ROW(MarketingVariances[[#Headers],[8월]]),1),INDEX(MarketingPlan[],,1),0),MATCH(MarketingVariances[[#Headers],[8월]],MarketingPlan[#Headers],0))-INDEX(MarketingActual[],MATCH(INDEX(MarketingVariances[],ROW()-ROW(MarketingVariances[[#Headers],[8월]]),1),INDEX(MarketingPlan[],,1),0),MATCH(MarketingVariances[[#Headers],[8월]],MarketingActual[#Headers],0)) -> ₩200.00 | K27: =INDEX(MarketingPlan[],MATCH(INDEX(MarketingVariances[],ROW()-ROW(MarketingVariances[[#Headers],[9월]]),1),INDEX(MarketingPlan[],,1),0),MATCH(MarketingVariances[[#Headers],[9월]],MarketingPlan[#Headers],0))-INDEX(MarketingActual[],MATCH(INDEX(MarketingVariances[],ROW()-ROW(MarketingVariances[[#Headers],[9월]]),1),INDEX(MarketingPlan[],,1),0),MATCH(MarketingVariances[[#Headers],[9월]],MarketingActual[#Headers],0)) -> ₩200.00 | L27: =INDEX(MarketingPlan[],MATCH(INDEX(MarketingVariances[],ROW()-ROW(MarketingVariances[[#Headers],[10월]]),1),INDEX(MarketingPlan[],,1),0),MATCH(MarketingVariances[[#Headers],[10월]],MarketingPlan[#Headers],0))-INDEX(MarketingActual[],MATCH(INDEX(MarketingVariances[],ROW()-ROW(MarketingVariances[[#Headers],[10월]]),1),INDEX(MarketingPlan[],,1),0),MATCH(MarketingVariances[[#Headers],[10월]],MarketingActual[#Headers],0)) -> ₩200.00 | M27: =INDEX(MarketingPlan[],MATCH(INDEX(MarketingVariances[],ROW()-ROW(MarketingVariances[[#Headers],[11월]]),1),INDEX(MarketingPlan[],,1),0),MATCH(MarketingVariances[[#Headers],[11월]],MarketingPlan[#Headers],0))-INDEX(MarketingActual[],MATCH(INDEX(MarketingVariances[],ROW()-ROW(MarketingVariances[[#Headers],[11월]]),1),INDEX(MarketingPlan[],,1),0),MATCH(MarketingVariances[[#Headers],[11월]],MarketingActual[#Headers],0)) -> ₩200.00 | N27: =INDEX(MarketingPlan[],MATCH(INDEX(MarketingVariances[],ROW()-ROW(MarketingVariances[[#Headers],[12월]]),1),INDEX(MarketingPlan[],,1),0),MATCH(MarketingVariances[[#Headers],[12월]],MarketingPlan[#Headers],0))-INDEX(MarketingActual[],MATCH(INDEX(MarketingVariances[],ROW()-ROW(MarketingVariances[[#Headers],[12월]]),1),INDEX(MarketingPlan[],,1),0),MATCH(MarketingVariances[[#Headers],[12월]],MarketingActual[#Headers],0)) -> ₩200.00 | O27: =SUM(MarketingVariances[[#This Row],[1월]:[12월]]) -> ₩1,321.00
B28: 소계 | C28: =SUBTOTAL(109,MarketingVariances[1월]) -> ₩555.00 | D28: =SUBTOTAL(109,MarketingVariances[2월]) -> (₩456.00) | E28: =SUBTOTAL(109,MarketingVariances[3월]) -> (₩23.00) | F28: =SUBTOTAL(109,MarketingVariances[4월]) -> (₩123.00) | G28: =SUBTOTAL(109,MarketingVariances[5월]) -> ₩113.00 | H28: =SUBTOTAL(109,MarketingVariances[6월]) -> (₩825.00) | I28: =SUBTOTAL(109,MarketingVariances[7월]) -> ₩8,100.00 | J28: =SUBTOTAL(109,MarketingVariances[8월]) -> ₩6,100.00 | K28: =SUBTOTAL(109,MarketingVariances[9월]) -> ₩3,100.00 | L28: =SUBTOTAL(109,MarketingVariances[10월]) -> ₩8,100.00 | M28: =SUBTOTAL(109,MarketingVariances[11월]) -> ₩3,100.00 | N28: =SUBTOTAL(109,MarketingVariances[12월]) -> ₩6,900.00 | O28: =SUBTOTAL(109,MarketingVariances[연도]) -> ₩34,641.00
A30: 오른쪽 셀에서 시작하는 교육 및 출장 차이 표에서 교육 또는 출장 비용의 차이가 자동으로 계산됩니다. 다음 지침은 A35 셀에 있습니다. | B30: 교육/출장 | C30: 1월 | D30: 2월 | E30: 3월 | F30: 4월 | G30: 5월 | H30: 6월 | I30: 7월 | J30: 8월 | K30: 9월 | L30: 10월 | M30: 11월 | N30: 12월 | O30: 연도
B31: 교육 수업 | C31: =INDEX(TrainingAndTravelPlan[],MATCH(INDEX(TrainingAndTravelVariances[],ROW()-ROW(TrainingAndTravelVariances[[#Headers],[1월]]),1),INDEX(TrainingAndTravelPlan[],,1),0),MATCH(TrainingAndTravelVariances[[#Headers],[1월]],TrainingAndTravelPlan[#Headers],0))-INDEX(TrainingAndTravelActual[],MATCH(INDEX(TrainingAndTravelVariances[],ROW()-ROW(TrainingAndTravelVariances[[#Headers],[1월]]),1),INDEX(TrainingAndTravelPlan[],,1),0),MATCH(TrainingAndTravelVariances[[#Headers],[1월]],TrainingAndTravelActual[#Headers],0)) -> ₩400.00 | D31: =INDEX(TrainingAndTravelPlan[],MATCH(INDEX(TrainingAndTravelVariances[],ROW()-ROW(TrainingAndTravelVariances[[#Headers],[2월]]),1),INDEX(TrainingAndTravelPlan[],,1),0),MATCH(TrainingAndTravelVariances[[#Headers],[2월]],TrainingAndTravelPlan[#Headers],0))-INDEX(TrainingAndTravelActual[],MATCH(INDEX(TrainingAndTravelVariances[],ROW()-ROW(TrainingAndTravelVariances[[#Headers],[2월]]),1),INDEX(TrainingAndTravelPlan[],,1),0),MATCH(TrainingAndTravelVariances[[#Headers],[2월]],TrainingAndTravelActual[#Headers],0)) -> (₩400.00) | E31: =INDEX(TrainingAndTravelPlan[],MATCH(INDEX(TrainingAndTravelVariances[],ROW()-ROW(TrainingAndTravelVariances[[#Headers],[3월]]),1),INDEX(TrainingAndTravelPlan[],,1),0),MATCH(TrainingAndTravelVariances[[#Headers],[3월]],TrainingAndTravelPlan[#Headers],0))-INDEX(TrainingAndTravelActual[],MATCH(INDEX(TrainingAndTravelVariances[],ROW()-ROW(TrainingAndTravelVariances[[#Headers],[3월]]),1),INDEX(TrainingAndTravelPlan[],,1),0),MATCH(TrainingAndTravelVariances[[#Headers],[3월]],TrainingAndTravelActual[#Headers],0)) -> ₩600.00 | F31: =INDEX(TrainingAndTravelPlan[],MATCH(INDEX(TrainingAndTravelVariances[],ROW()-ROW(TrainingAndTravelVariances[[#Headers],[4월]]),1),INDEX(TrainingAndTravelPlan[],,1),0),MATCH(TrainingAndTravelVariances[[#Headers],[4월]],TrainingAndTravelPlan[#Headers],0))-INDEX(TrainingAndTravelActual[],MATCH(INDEX(TrainingAndTravelVariances[],ROW()-ROW(TrainingAndTravelVariances[[#Headers],[4월]]),1),INDEX(TrainingAndTravelPlan[],,1),0),MATCH(TrainingAndTravelVariances[[#Headers],[4월]],TrainingAndTravelActual[#Headers],0)) -> ₩400.00 | G31: =INDEX(TrainingAndTravelPlan[],MATCH(INDEX(TrainingAndTravelVariances[],ROW()-ROW(TrainingAndTravelVariances[[#Headers],[5월]]),1),INDEX(TrainingAndTravelPlan[],,1),0),MATCH(TrainingAndTravelVariances[[#Headers],[5월]],TrainingAndTravelPlan[#Headers],0))-INDEX(TrainingAndTravelActual[],MATCH(INDEX(TrainingAndTravelVariances[],ROW()-ROW(TrainingAndTravelVariances[[#Headers],[5월]]),1),INDEX(TrainingAndTravelPlan[],,1),0),MATCH(TrainingAndTravelVariances[[#Headers],[5월]],TrainingAndTravelActual[#Headers],0)) -> ₩800.00 | H31: =INDEX(TrainingAndTravelPlan[],MATCH(INDEX(TrainingAndTravelVariances[],ROW()-ROW(TrainingAndTravelVariances[[#Headers],[6월]]),1),INDEX(TrainingAndTravelPlan[],,1),0),MATCH(TrainingAndTravelVariances[[#Headers],[6월]],TrainingAndTravelPlan[#Headers],0))-INDEX(TrainingAndTravelActual[],MATCH(INDEX(TrainingAndTravelVariances[],ROW()-ROW(TrainingAndTravelVariances[[#Headers],[6월]]),1),INDEX(TrainingAndTravelPlan[],,1),0),MATCH(TrainingAndTravelVariances[[#Headers],[6월]],TrainingAndTravelActual[#Headers],0)) -> (₩800.00) | I31: =INDEX(TrainingAndTravelPlan[],MATCH(INDEX(TrainingAndTravelVariances[],ROW()-ROW(TrainingAndTravelVariances[[#Headers],[7월]]),1),INDEX(TrainingAndTravelPlan[],,1),0),MATCH(TrainingAndTravelVariances[[#Headers],[7월]],TrainingAndTravelPlan[#Headers],0))-INDEX(TrainingAndTravelActual[],MATCH(INDEX(TrainingAndTravelVariances[],ROW()-ROW(TrainingAndTravelVariances[[#Headers],[7월]]),1),INDEX(TrainingAndTravelPlan[],,1),0),MATCH(TrainingAndTravelVariances[[#Headers],[7월]],TrainingAndTravelActual[#Headers],0)) -> ₩2,000.00 | J31: =INDEX(TrainingAndTravelPlan[],MATCH(INDEX(TrainingAndTravelVariances[],ROW()-ROW(TrainingAndTravelVariances[[#Headers],[8월]]),1),INDEX(TrainingAndTravelPlan[],,1),0),MATCH(TrainingAndTravelVariances[[#Headers],[8월]],TrainingAndTravelPlan[#Headers],0))-INDEX(TrainingAndTravelActual[],MATCH(INDEX(TrainingAndTravelVariances[],ROW()-ROW(TrainingAndTravelVariances[[#Headers],[8월]]),1),INDEX(TrainingAndTravelPlan[],,1),0),MATCH(TrainingAndTravelVariances[[#Headers],[8월]],TrainingAndTravelActual[#Headers],0)) -> ₩2,000.00 | K31: =INDEX(TrainingAndTravelPlan[],MATCH(INDEX(TrainingAndTravelVariances[],ROW()-ROW(TrainingAndTravelVariances[[#Headers],[9월]]),1),INDEX(TrainingAndTravelPlan[],,1),0),MATCH(TrainingAndTravelVariances[[#Headers],[9월]],TrainingAndTravelPlan[#Headers],0))-INDEX(TrainingAndTravelActual[],MATCH(INDEX(TrainingAndTravelVariances[],ROW()-ROW(TrainingAndTravelVariances[[#Headers],[9월]]),1),INDEX(TrainingAndTravelPlan[],,1),0),MATCH(TrainingAndTravelVariances[[#Headers],[9월]],TrainingAndTravelActual[#Headers],0)) -> ₩2,000.00 | L31: =INDEX(TrainingAndTravelPlan[],MATCH(INDEX(TrainingAndTravelVariances[],ROW()-ROW(TrainingAndTravelVariances[[#Headers],[10월]]),1),INDEX(TrainingAndTravelPlan[],,1),0),MATCH(TrainingAndTravelVariances[[#Headers],[10월]],TrainingAndTravelPlan[#Headers],0))-INDEX(TrainingAndTravelActual[],MATCH(INDEX(TrainingAndTravelVariances[],ROW()-ROW(TrainingAndTravelVariances[[#Headers],[10월]]),1),INDEX(TrainingAndTravelPlan[],,1),0),MATCH(TrainingAndTravelVariances[[#Headers],[10월]],TrainingAndTravelActual[#Headers],0)) -> ₩2,000.00 | M31: =INDEX(TrainingAndTravelPlan[],MATCH(INDEX(TrainingAndTravelVariances[],ROW()-ROW(TrainingAndTravelVariances[[#Headers],[11월]]),1),INDEX(TrainingAndTravelPlan[],,1),0),MATCH(TrainingAndTravelVariances[[#Headers],[11월]],TrainingAndTravelPlan[#Headers],0))-INDEX(TrainingAndTravelActual[],MATCH(INDEX(TrainingAndTravelVariances[],ROW()-ROW(TrainingAndTravelVariances[[#Headers],[11월]]),1),INDEX(TrainingAndTravelPlan[],,1),0),MATCH(TrainingAndTravelVariances[[#Headers],[11월]],TrainingAndTravelActual[#Headers],0)) -> ₩2,000.00 | N31: =INDEX(TrainingAndTravelPlan[],MATCH(INDEX(TrainingAndTravelVariances[],ROW()-ROW(TrainingAndTravelVariances[[#Headers],[12월]]),1),INDEX(TrainingAndTravelPlan[],,1),0),MATCH(TrainingAndTravelVariances[[#Headers],[12월]],TrainingAndTravelPlan[#Headers],0))-INDEX(TrainingAndTravelActual[],MATCH(INDEX(TrainingAndTravelVariances[],ROW()-ROW(TrainingAndTravelVariances[[#Headers],[12월]]),1),INDEX(TrainingAndTravelPlan[],,1),0),MATCH(TrainingAndTravelVariances[[#Headers],[12월]],TrainingAndTravelActual[#Headers],0)) -> ₩2,000.00 | O31: =SUM(TrainingAndTravelVariances[[#This Row],[1월]:[12월]]) -> ₩13,000.00
B32: 교육 관련 출장 비용 | C32: =INDEX(TrainingAndTravelPlan[],MATCH(INDEX(TrainingAndTravelVariances[],ROW()-ROW(TrainingAndTravelVariances[[#Headers],[1월]]),1),INDEX(TrainingAndTravelPlan[],,1),0),MATCH(TrainingAndTravelVariances[[#Headers],[1월]],TrainingAndTravelPlan[#Headers],0))-INDEX(TrainingAndTravelActual[],MATCH(INDEX(TrainingAndTravelVariances[],ROW()-ROW(TrainingAndTravelVariances[[#Headers],[1월]]),1),INDEX(TrainingAndTravelPlan[],,1),0),MATCH(TrainingAndTravelVariances[[#Headers],[1월]],TrainingAndTravelActual[#Headers],0)) -> ₩800.00 | D32: =INDEX(TrainingAndTravelPlan[],MATCH(INDEX(TrainingAndTravelVariances[],ROW()-ROW(TrainingAndTravelVariances[[#Headers],[2월]]),1),INDEX(TrainingAndTravelPlan[],,1),0),MATCH(TrainingAndTravelVariances[[#Headers],[2월]],TrainingAndTravelPlan[#Headers],0))-INDEX(TrainingAndTravelActual[],MATCH(INDEX(TrainingAndTravelVariances[],ROW()-ROW(TrainingAndTravelVariances[[#Headers],[2월]]),1),INDEX(TrainingAndTravelPlan[],,1),0),MATCH(TrainingAndTravelVariances[[#Headers],[2월]],TrainingAndTravelActual[#Headers],0)) -> (₩200.00) | E32: =INDEX(TrainingAndTravelPlan[],MATCH(INDEX(TrainingAndTravelVariances[],ROW()-ROW(TrainingAndTravelVariances[[#Headers],[3월]]),1),INDEX(TrainingAndTravelPlan[],,1),0),MATCH(TrainingAndTravelVariances[[#Headers],[3월]],TrainingAndTravelPlan[#Headers],0))-INDEX(TrainingAndTravelActual[],MATCH(INDEX(TrainingAndTravelVariances[],ROW()-ROW(TrainingAndTravelVariances[[#Headers],[3월]]),1),INDEX(TrainingAndTravelPlan[],,1),0),MATCH(TrainingAndTravelVariances[[#Headers],[3월]],TrainingAndTravelActual[#Headers],0)) -> ₩600.00 | F32: =INDEX(TrainingAndTravelPlan[],MATCH(INDEX(TrainingAndTravelVariances[],ROW()-ROW(TrainingAndTravelVariances[[#Headers],[4월]]),1),INDEX(TrainingAndTravelPlan[],,1),0),MATCH(TrainingAndTravelVariances[[#Headers],[4월]],TrainingAndTravelPlan[#Headers],0))-INDEX(TrainingAndTravelActual[],MATCH(INDEX(TrainingAndTravelVariances[],ROW()-ROW(TrainingAndTravelVariances[[#Headers],[4월]]),1),INDEX(TrainingAndTravelPlan[],,1),0),MATCH(TrainingAndTravelVariances[[#Headers],[4월]],TrainingAndTravelActual[#Headers],0)) -> ₩800.00 | G32: =INDEX(TrainingAndTravelPlan[],MATCH(INDEX(TrainingAndTravelVariances[],ROW()-ROW(TrainingAndTravelVariances[[#Headers],[5월]]),1),INDEX(TrainingAndTravelPlan[],,1),0),MATCH(TrainingAndTravelVariances[[#Headers],[5월]],TrainingAndTravelPlan[#Headers],0))-INDEX(TrainingAndTravelActual[],MATCH(INDEX(TrainingAndTravelVariances[],ROW()-ROW(TrainingAndTravelVariances[[#Headers],[5월]]),1),INDEX(TrainingAndTravelPlan[],,1),0),MATCH(TrainingAndTravelVariances[[#Headers],[5월]],TrainingAndTravelActual[#Headers],0)) -> ₩1,200.00 | H32: =INDEX(TrainingAndTravelPlan[],MATCH(INDEX(TrainingAndTravelVariances[],ROW()-ROW(TrainingAndTravelVariances[[#Headers],[6월]]),1),INDEX(TrainingAndTravelPlan[],,1),0),MATCH(TrainingAndTravelVariances[[#Headers],[6월]],TrainingAndTravelPlan[#Headers],0))-INDEX(TrainingAndTravelActual[],MATCH(INDEX(TrainingAndTravelVariances[],ROW()-ROW(TrainingAndTravelVariances[[#Headers],[6월]]),1),INDEX(TrainingAndTravelPlan[],,1),0),MATCH(TrainingAndTravelVariances[[#Headers],[6월]],TrainingAndTravelActual[#Headers],0)) -> (₩1,500.00) | I32: =INDEX(TrainingAndTravelPlan[],MATCH(INDEX(TrainingAndTravelVariances[],ROW()-ROW(TrainingAndTravelVariances[[#Headers],[7월]]),1),INDEX(TrainingAndTravelPlan[],,1),0),MATCH(TrainingAndTravelVariances[[#Headers],[7월]],TrainingAndTravelPlan[#Headers],0))-INDEX(TrainingAndTravelActual[],MATCH(INDEX(TrainingAndTravelVariances[],ROW()-ROW(TrainingAndTravelVariances[[#Headers],[7월]]),1),INDEX(TrainingAndTravelPlan[],,1),0),MATCH(TrainingAndTravelVariances[[#Headers],[7월]],TrainingAndTravelActual[#Headers],0)) -> ₩2,000.00 | J32: =INDEX(TrainingAndTravelPlan[],MATCH(INDEX(TrainingAndTravelVariances[],ROW()-ROW(TrainingAndTravelVariances[[#Headers],[8월]]),1),INDEX(TrainingAndTravelPlan[],,1),0),MATCH(TrainingAndTravelVariances[[#Headers],[8월]],TrainingAndTravelPlan[#Headers],0))-INDEX(TrainingAndTravelActual[],MATCH(INDEX(TrainingAndTravelVariances[],ROW()-ROW(TrainingAndTravelVariances[[#Headers],[8월]]),1),INDEX(TrainingAndTravelPlan[],,1),0),MATCH(TrainingAndTravelVariances[[#Headers],[8월]],TrainingAndTravelActual[#Headers],0)) -> ₩2,000.00 | K32: =INDEX(TrainingAndTravelPlan[],MATCH(INDEX(TrainingAndTravelVariances[],ROW()-ROW(TrainingAndTravelVariances[[#Headers],[9월]]),1),INDEX(TrainingAndTravelPlan[],,1),0),MATCH(TrainingAndTravelVariances[[#Headers],[9월]],TrainingAndTravelPlan[#Headers],0))-INDEX(TrainingAndTravelActual[],MATCH(INDEX(TrainingAndTravelVariances[],ROW()-ROW(TrainingAndTravelVariances[[#Headers],[9월]]),1),INDEX(TrainingAndTravelPlan[],,1),0),MATCH(TrainingAndTravelVariances[[#Headers],[9월]],TrainingAndTravelActual[#Headers],0)) -> ₩2,000.00 | L32: =INDEX(TrainingAndTravelPlan[],MATCH(INDEX(TrainingAndTravelVariances[],ROW()-ROW(TrainingAndTravelVariances[[#Headers],[10월]]),1),INDEX(TrainingAndTravelPlan[],,1),0),MATCH(TrainingAndTravelVariances[[#Headers],[10월]],TrainingAndTravelPlan[#Headers],0))-INDEX(TrainingAndTravelActual[],MATCH(INDEX(TrainingAndTravelVariances[],ROW()-ROW(TrainingAndTravelVariances[[#Headers],[10월]]),1),INDEX(TrainingAndTravelPlan[],,1),0),MATCH(TrainingAndTravelVariances[[#Headers],[10월]],TrainingAndTravelActual[#Headers],0)) -> ₩2,000.00 | M32: =INDEX(TrainingAndTravelPlan[],MATCH(INDEX(TrainingAndTravelVariances[],ROW()-ROW(TrainingAndTravelVariances[[#Headers],[11월]]),1),INDEX(TrainingAndTravelPlan[],,1),0),MATCH(TrainingAndTravelVariances[[#Headers],[11월]],TrainingAndTravelPlan[#Headers],0))-INDEX(TrainingAndTravelActual[],MATCH(INDEX(TrainingAndTravelVariances[],ROW()-ROW(TrainingAndTravelVariances[[#Headers],[11월]]),1),INDEX(TrainingAndTravelPlan[],,1),0),MATCH(TrainingAndTravelVariances[[#Headers],[11월]],TrainingAndTravelActual[#Headers],0)) -> ₩2,000.00 | N32: =INDEX(TrainingAndTravelPlan[],MATCH(INDEX(TrainingAndTravelVariances[],ROW()-ROW(TrainingAndTravelVariances[[#Headers],[12월]]),1),INDEX(TrainingAndTravelPlan[],,1),0),MATCH(TrainingAndTravelVariances[[#Headers],[12월]],TrainingAndTravelPlan[#Headers],0))-INDEX(TrainingAndTravelActual[],MATCH(INDEX(TrainingAndTravelVariances[],ROW()-ROW(TrainingAndTravelVariances[[#Headers],[12월]]),1),INDEX(TrainingAndTravelPlan[],,1),0),MATCH(TrainingAndTravelVariances[[#Headers],[12월]],TrainingAndTravelActual[#Headers],0)) -> ₩2,000.00 | O32: =SUM(TrainingAndTravelVariances[[#This Row],[1월]:[12월]]) -> ₩13,700.00
B33: 소계 | C33: =SUBTOTAL(109,TrainingAndTravelVariances[1월]) -> ₩1,200.00 | D33: =SUBTOTAL(109,TrainingAndTravelVariances[2월]) -> (₩600.00) | E33: =SUBTOTAL(109,TrainingAndTravelVariances[3월]) -> ₩1,200.00 | F33: =SUBTOTAL(109,TrainingAndTravelVariances[4월]) -> ₩1,200.00 | G33: =SUBTOTAL(109,TrainingAndTravelVariances[5월]) -> ₩2,000.00 | H33: =SUBTOTAL(109,TrainingAndTravelVariances[6월]) -> (₩2,300.00) | I33: =SUBTOTAL(109,TrainingAndTravelVariances[7월]) -> ₩4,000.00 | J33: =SUBTOTAL(109,TrainingAndTravelVariances[8월]) -> ₩4,000.00 | K33: =SUBTOTAL(109,TrainingAndTravelVariances[9월]) -> ₩4,000.00 | L33: =SUBTOTAL(109,TrainingAndTravelVariances[10월]) -> ₩4,000.00 | M33: =SUBTOTAL(109,TrainingAndTravelVariances[11월]) -> ₩4,000.00 | N33: =SUBTOTAL(109,TrainingAndTravelVariances[12월]) -> ₩4,000.00 | O33: =SUBTOTAL(109,TrainingAndTravelVariances[연도]) -> ₩26,700.00
A35: 오른쪽 셀에서 시작하는 합계 차이 표에 지출 차이가 자동으로 계산됩니다. | B35: 합계 | C35: 1월 | D35: 2월 | E35: 3월 | F35: 4월 | G35: 5월 | H35: 6월 | I35: 7월 | J35: 8월 | K35: 9월 | L35: 10월 | M35: 11월 | N35: 12월 | O35: 연도
B36: 월별 실제 지출 | C36: =TrainingAndTravelVariances[[#Totals],[1월]]+MarketingVariances[[#Totals],[1월]]+OfficeVariances[[#Totals],[1월]]+EmployeeVariances[[#Totals],[1월]] -> ₩1,738.00 | D36: =TrainingAndTravelVariances[[#Totals],[2월]]+MarketingVariances[[#Totals],[2월]]+OfficeVariances[[#Totals],[2월]]+EmployeeVariances[[#Totals],[2월]] -> (₩984.00) | E36: =TrainingAndTravelVariances[[#Totals],[3월]]+MarketingVariances[[#Totals],[3월]]+OfficeVariances[[#Totals],[3월]]+EmployeeVariances[[#Totals],[3월]] -> ₩1,255.00 | F36: =TrainingAndTravelVariances[[#Totals],[4월]]+MarketingVariances[[#Totals],[4월]]+OfficeVariances[[#Totals],[4월]]+EmployeeVariances[[#Totals],[4월]] -> ₩301.00 | G36: =TrainingAndTravelVariances[[#Totals],[5월]]+MarketingVariances[[#Totals],[5월]]+OfficeVariances[[#Totals],[5월]]+EmployeeVariances[[#Totals],[5월]] -> ₩1,440.00 | H36: =TrainingAndTravelVariances[[#Totals],[6월]]+MarketingVariances[[#Totals],[6월]]+OfficeVariances[[#Totals],[6월]]+EmployeeVariances[[#Totals],[6월]] -> (₩3,744.00) | I36: =TrainingAndTravelVariances[[#Totals],[7월]]+MarketingVariances[[#Totals],[7월]]+OfficeVariances[[#Totals],[7월]]+EmployeeVariances[[#Totals],[7월]] -> ₩134,695.00 | J36: =TrainingAndTravelVariances[[#Totals],[8월]]+MarketingVariances[[#Totals],[8월]]+OfficeVariances[[#Totals],[8월]]+EmployeeVariances[[#Totals],[8월]] -> ₩138,918.00 | K36: =TrainingAndTravelVariances[[#Totals],[9월]]+MarketingVariances[[#Totals],[9월]]+OfficeVariances[[#Totals],[9월]]+EmployeeVariances[[#Totals],[9월]] -> ₩135,918.00 | L36: =TrainingAndTravelVariances[[#Totals],[10월]]+MarketingVariances[[#Totals],[10월]]+OfficeVariances[[#Totals],[10월]]+EmployeeVariances[[#Totals],[10월]] -> ₩140,918.00 | M36: =TrainingAndTravelVariances[[#Totals],[11월]]+MarketingVariances[[#Totals],[11월]]+OfficeVariances[[#Totals],[11월]]+EmployeeVariances[[#Totals],[11월]] -> ₩136,218.00 | N36: =TrainingAndTravelVariances[[#Totals],[12월]]+MarketingVariances[[#Totals],[12월]]+OfficeVariances[[#Totals],[12월]]+EmployeeVariances[[#Totals],[12월]] -> ₩140,018.00 | O36: =TrainingAndTravelVariances[[#Totals],[연도]]+MarketingVariances[[#Totals],[연도]]+OfficeVariances[[#Totals],[연도]]+EmployeeVariances[[#Totals],[연도]] -> ₩826,691.00
B37: 총 실제 지출 | C37: =SUM($C$36:C36) -> ₩1,738.00 | D37: =SUM($C$36:D36) -> ₩754.00 | E37: =SUM($C$36:E36) -> ₩2,009.00 | F37: =SUM($C$36:F36) -> ₩2,310.00 | G37: =SUM($C$36:G36) -> ₩3,750.00 | H37: =SUM($C$36:H36) -> ₩6.00 | I37: =SUM($C$36:I36) -> ₩134,701.00 | J37: =SUM($C$36:J36) -> ₩273,619.00 | K37: =SUM($C$36:K36) -> ₩409,537.00 | L37: =SUM($C$36:L36) -> ₩550,455.00 | M37: =SUM($C$36:M36) -> ₩686,673.00 | N37: =SUM($C$36:N36) -> ₩826,691.00

Sheet 지출 분석
A1: 연간 계획 및 실제 지출, 지출 차이 및 차이 비율은 이 워크시트의 각 지출 범주에 대해 자동으로 업데이트됩니다. 이 워크시트의 사용 방법에 대한 유용한 지침은 이 열의 셀에 있습니다. 아래쪽 화살표를 사용하여 시작할 수 있습니다.
A2: 오른쪽 셀에 회사 이름이 자동으로 업데이트됩니다. F2 셀에 로고를 입력합니다. | B2: ='계획한 지출'!B2:D3 -> 회사 이름 | F2: 이 셀에는 로고 자리 표시자가 있습니다.
A3: E3 셀에는 이 워크시트의 제목이 표시됩니다. 다음 지침은 A5 셀에 있습니다. | E3: =worksheet_title -> 세부 지출 예상 항목
A5: 오른쪽 셀에서 시작하는 분석 표에 계획한 지출, 실제 지출, 지출 차이 및 차이 비율이 자동으로 계산됩니다. 다음 지침은 A12 셀에 있습니다.표시됩니다. | B5: 지출 범주 | C5: 계획한 지출 | D5: 실제 지출 | E5: 지출 차이 | F5: 차이 비율
B6: 직원 비용 | C6: =EmployeePlan[[#Totals],[연도]] -> ₩1,355,090.00 | D6: =EmployeeActual[[#Totals],[연도]] -> ₩659,130.00 | E6: =C6-D6 -> ₩695,960.00 | F6: =E6/C6 -> 51%
B7: ='계획한 지출'!B10 -> 사무 비용 | C7: =OfficePlan[[#Totals],[연도]] -> ₩138,740.00 | D7: =OfficeActual[[#Totals],[연도]] -> ₩69,350.00 | E7: =C7-D7 -> ₩69,390.00 | F7: =E7/C7 -> 50%
B8: ='계획한 지출'!B21 -> 마케팅 비용 | C8: =MarketingPlan[[#Totals],[연도]] -> ₩67,800.00 | D8: =MarketingActual[[#Totals],[연도]] -> ₩33,159.00 | E8: =C8-D8 -> ₩34,641.00 | F8: =E8/C8 -> 51%
B9: ='계획한 지출'!B30 -> 교육/출장 | C9: =TrainingAndTravelPlan[[#Totals],[연도]] -> ₩48,000.00 | D9: =TrainingAndTravelActual[[#Totals],[연도]] -> ₩21,300.00 | E9: =C9-D9 -> ₩26,700.00 | F9: =E9/C9 -> 56%
B10: ='계획한 지출'!B35 -> 합계 | C10: ='계획한 지출'!O36 -> ₩1,609,630.00 | D10: ='실제 지출'!O36 -> ₩782,939.00 | E10: =C10-D10 -> ₩826,691.00 | F10: =E10/C10 -> 51%
A12: 오른쪽 셀에 계획한 지출의 원형 차트가 있고, D12 셀에 실제 지출의 원형 차트가 있습니다. 다음 지침은 A14 셀에 있습니다. | B12: 이 셀에는 다양한 범주의 계획 지출을 보여 주는 원형 차트가 있습니다. | D12: 이 셀에는 다양한 범주에서 발생한 실제 지출을 보여 주는 원형 차트가 있습니다.
A14: 오른쪽 셀에 월별 지출의 계획, 실제, 차이를 보여 주는 차트가 있습니다.
